Workbook

Sheet Sheet2 (hidden)
A2: 시도별 | B2: 급경사지 현황 | D2: 2017.12기준 | E2: 계 | F2: 신규 | G2: 시특법시설물 지정 | H2: 규모미달 | I2: 정비해소 | J2: 개발공사로 인한 해소 | K2: 중복대상지 정정
A3: 계 | B3: =SUM(B4:B20) -> 12212 | D3: =SUM(D4:D20) -> 14325 | E3: =F3-G3-H3-I3-J3-K3 -> -32 | F3: =SUM(F4:F20) -> 16 | G3: =SUM(G4:G20) -> 30 | H3: 6 | I3: 4 | J3: 5 | K3: 3 | N3: =B4-D4 -> 24
A4: 서울 | B4: =관리기관별!B5 -> 845 | D4: 821 | E4: =F4-G4-H4-I4-J4-K4 -> 0 | N4: =B5-D5 -> -43
A5: 부산 | B5: =관리기관별!B6 -> 658 | C5: 완료 | D5: 701 | E5: -2 | F5: 22 | G5: 11 | H5: 5 | J5: 5 | K5: 3 | N5: -36
A6: 대구 | B6: =관리기관별!B7 -> 160 | D6: 196 | E6: -15 | F6: 4 | G6: 19 | N6: -7
A7: 인천 | B7: =관리기관별!B8 -> 241 | C7: 완료 | D7: 248 | E7: -3 | F7: 2 | H7: 1 | I7: 4 | N7: -18
A8: 광주 | B8: =관리기관별!B9 -> 125 | D8: 143 | E8: 0 | N8: -60
A9: 대전 | B9: =관리기관별!B10 -> 151 | D9: 211 | E9: 0 | N9: -81
A10: 울산 | B10: =관리기관별!B11 -> 308 | C10: 완료 | D10: 389 | E10: 67 | F10: =456-389 -> 67 | N10: -7
A11: 세종 | B11: =관리기관별!B12 -> 59 | D11: 66 | E11: 1 | F11: 1 | L11: 시스템 확인사항 | N11: -4
A12: 경기 | B12: =관리기관별!B13 -> 883 | C12: 완료 | D12: 887 | E12: -4 | F12: =B12-D12 -> -4 | N12: -332
A13: 강원 | B13: =관리기관별!B14 -> 1995 | D13: 2327 | E13: 0 | N13: -81
A14: 충북 | B14: =관리기관별!B15 -> 1202 | D14: 1283 | E14: 0 | N14: -76
A15: 충남 | B15: =관리기관별!B16 -> 238 | C15: 완료 | D15: 314 | E15: -76 | F15: =B15-D15 -> -76 | N15: -88
A16: 전북 | B16: =관리기관별!B17 -> 1067 | D16: 1155 | E16: 0 | N16: -399
A17: 전남 | B17: =관리기관별!B18 -> 897 | D17: 1296 | E17: 0 | N17: -163
A18: 경북 | B18: =관리기관별!B19 -> 1016 | D18: 1179 | E18: 0 | L18: =D18-B18 -> 163 | N18: -738
A19: 경남 | B19: =관리기관별!B20 -> 2330 | D19: 3068 | E19: 0 | N19: -4
A20: 제주 | B20: =관리기관별!B21 -> 37 | D20: 41 | E20: 0 | N20: 0
D24: =1149-1155 -> -6

Sheet 관리기관별 (hidden)
A1: 급경사지 관리기관별 현황('18. 12월말 기준)
A3: 시도 | B3: 계 | C3: 지자체 | D3: 지방산림청 | E3: 한국 농어촌공사 | F3: 한국토지 주택공사 | G3: 한국철도 시설공단 | H3: 도시 철도공사 | I3: 국립공원 관리공단 | J3: 기타 (개인,기업,공공기관)
A4: 총계 | B4: =SUM(B5:B21) -> 12212 | C4: =SUM(C5:C21) -> 10383 | D4: 0 | E4: =SUM(E5:E21) -> 0 | F4: 31 | G4: 0 | H4: 0 | I4: 0 | J4: 1798
A5: 서울 | B5: =SUM(C5:J5) -> 845 | C5: 809 | D5: =COUNTIF(★전체!$I$6:$I$894,"지방산림청") -> 0 | E5: =COUNTIF(★전체!$I$6:$I$894,"한국농어촌공사") -> 0 | F5: =COUNTIF(★전체!$I$6:$I$894,"한국토지주택공사") -> 1 | G5: =COUNTIF(★전체!$I$6:$I$894,"한국철도시설공단") -> 0 | H5: =COUNTIF(★전체!$I$6:$I$894,"도시철도공사") -> 0 | I5: =COUNTIF(★전체!$I$6:$I$894,"국립공원관리공단") -> 0 | J5: 35 | K5: 완료
A6: 부산 | B6: =SUM(C6:J6) -> 658 | C6: 342 | D6: =COUNTIF(★전체!$I$895:$I$1598,"지방산림청") -> 0 | E6: =COUNTIF(★전체!$I$895:$I$1598,"한국농어촌공사") -> 0 | F6: =COUNTIF(★전체!$I$895:$I$1598,"한국토지주택공사") -> 10 | G6: =COUNTIF(★전체!$I$895:$I$1598,"한국철도시설공단") -> 0 | H6: =COUNTIF(★전체!$I$895:$I$1598,"도시철도공사") -> 0 | I6: =COUNTIF(★전체!$I$895:$I$1598,"국립공원관리공단") -> 0 | J6: 306 | K6: 최종완료
A7: 대구 | B7: =SUM(C7:J7) -> 160 | C7: 83 | D7: =COUNTIF(★전체!$I$1599:$I$1784,"지방산림청") -> 0 | E7: =COUNTIF(★전체!$I$1599:$I$1784,"한국농어촌공사") -> 0 | F7: =COUNTIF(★전체!$I$1599:$I$1784,"한국토지주택공사") -> 0 | G7: =COUNTIF(★전체!$I$1599:$I$1784,"한국철도시설공단") -> 0 | H7: =COUNTIF(★전체!$I$1599:$I$1784,"도시철도공사") -> 0 | I7: =COUNTIF(★전체!$I$1599:$I$1784,"국립공원관리공단") -> 0 | J7: 77 | K7: 최종완료
A8: 인천 | B8: =SUM(C8:J8) -> 241 | C8: 82 | D8: =COUNTIF(★전체!$I$1785:$I$2031,"지방산림청") -> 0 | E8: =COUNTIF(★전체!$I$1785:$I$2031,"한국농어촌공사") -> 0 | F8: =COUNTIF(★전체!$I$1599:$I$1779,"한국토지주택공사") -> 0 | G8: =COUNTIF(★전체!$I$1785:$I$2031,"한국철도시설공단") -> 0 | H8: =COUNTIF(★전체!$I$1785:$I$2031,"도시철도공사") -> 0 | I8: =COUNTIF(★전체!$I$1785:$I$2031,"국립공원관리공단") -> 0 | J8: 159 | K8: 최종완료
A9: 광주 | B9: =SUM(C9:J9) -> 125 | C9: 67 | D9: =COUNTIF(★전체!$I$2032:$I$2137,"지방산림청") -> 0 | E9: =COUNTIF(★전체!$I$2032:$I$2137,"한국농어촌공사") -> 0 | F9: =COUNTIF(★전체!$I$2032:$I$2137,"한국토지주택공사") -> 3 | G9: =COUNTIF(★전체!$I$2032:$I$2137,"한국철도시설공단") -> 0 | H9: =COUNTIF(★전체!$I$2032:$I$2137,"도시철도공사") -> 0 | I9: =COUNTIF(★전체!$I$2032:$I$2137,"국립공원관리공단") -> 0 | J9: 55 | K9: 최종완료
A10: 대전 | B10: =SUM(C10:J10) -> 151 | C10: 123 | D10: =COUNTIF(★전체!$I$2138:$I$2245,"지방산림청") -> 0 | E10: =COUNTIF(★전체!$I$2138:$I$2245,"한국농어촌공사") -> 0 | F10: =COUNTIF(★전체!$I$2138:$I$2245,"한국토지주택공사") -> 2 | G10: =COUNTIF(★전체!$I$2138:$I$2245,"한국철도시설공단") -> 0 | H10: =COUNTIF(★전체!$I$2138:$I$2245,"도시철도공사") -> 0 | I10: =COUNTIF(★전체!$I$2138:$I$2245,"국립공원관리공단") -> 0 | J10: 26 | K10: 최종완료
A11: 울산 | B11: =SUM(C11:J11) -> 308 | C11: 281 | D11: =COUNTIF(★전체!$I$2246:$I$2711,"지방산림청") -> 0 | E11: =COUNTIF(★전체!$I$2246:$I$2711,"한국농어촌공사") -> 0 | F11: =COUNTIF(★전체!$I$2246:$I$2711,"한국토지주택공사") -> 0 | G11: =COUNTIF(★전체!$I$2246:$I$2711,"한국철도시설공단") -> 0 | H11: =COUNTIF(★전체!$I$2246:$I$2711,"도시철도공사") -> 0 | I11: =COUNTIF(★전체!$I$2246:$I$2711,"국립공원관리공단") -> 0 | J11: 27 | K11: 완료
A12: 세종 | B12: 59 | C12: 52 | D12: =COUNTIF(★전체!$I$2712:$I$2794,"지방산림청") -> 0 | E12: =COUNTIF(★전체!$I$2712:$I$2794,"한국농어촌공사") -> 0 | F12: =COUNTIF(★전체!$I$2712:$I$2794,"한국토지주택공사") -> 0 | G12: =COUNTIF(★전체!$I$2712:$I$2794,"한국철도시설공단") -> 0 | H12: =COUNTIF(★전체!$I$2712:$I$2794,"도시철도공사") -> 0 | I12: =COUNTIF(★전체!$I$2712:$I$2794,"국립공원관리공단") -> 0 | J12: 7 | K12: 완료
A13: 경기 | B13: 883 | C13: 502 | D13: =COUNTIF(★전체!$I$2795:$I$3891,"지방산림청") -> 0 | E13: =COUNTIF(★전체!$I$2795:$I$3891,"한국농어촌공사") -> 0 | F13: =COUNTIF(★전체!$I$2795:$I$3891,"한국토지주택공사") -> 8 | G13: =COUNTIF(★전체!$I$2795:$I$3891,"한국철도시설공단") -> 0 | H13: =COUNTIF(★전체!$I$2795:$I$3891,"도시철도공사") -> 0 | I13: =COUNTIF(★전체!$I$2795:$I$3891,"국립공원관리공단") -> 0 | J13: 373 | K13: 최종완료
A14: 강원 | B14: 1995 | C14: 1880 | D14: =COUNTIF(★전체!$I$3892:$I$6233,"지방산림청") -> 0 | E14: =COUNTIF(★전체!$I$3892:$I$6233,"한국농어촌공사") -> 0 | F14: =COUNTIF(★전체!$I$3892:$I$6233,"한국토지주택공사") -> 0 | G14: =COUNTIF(★전체!$I$3892:$I$6233,"한국철도시설공단") -> 0 | H14: =COUNTIF(★전체!$I$3892:$I$6233,"도시철도공사") -> 0 | I14: =COUNTIF(★전체!$I$3892:$I$6233,"국립공원관리공단") -> 0 | J14: 115
A15: 충북 | B15: 1202 | C15: 953 | D15: =COUNTIF(★전체!$I$6234:$I$7643,"지방산림청") -> 0 | E15: =COUNTIF(★전체!$I$6234:$I$7643,"한국농어촌공사") -> 0 | F15: =COUNTIF(★전체!$I$6234:$I$7643,"한국토지주택공사") -> 0 | G15: =COUNTIF(★전체!$I$6234:$I$7643,"한국철도시설공단") -> 0 | H15: =COUNTIF(★전체!$I$6234:$I$7643,"도시철도공사") -> 0 | I15: =COUNTIF(★전체!$I$6234:$I$7643,"국립공원관리공단") -> 0 | J15: 249 | K15: 최종완료
A16: 충남 | B16: 238 | C16: 199 | D16: =COUNTIF(★전체!$I$7644:$I$7976,"지방산림청") -> 0 | E16: =COUNTIF(★전체!$I$7644:$I$7976,"한국농어촌공사") -> 0 | F16: =COUNTIF(★전체!$I$7644:$I$7976,"한국토지주택공사") -> 0 | G16: =COUNTIF(★전체!$I$7644:$I$7976,"한국철도시설공단") -> 0 | H16: =COUNTIF(★전체!$I$7644:$I$7976,"도시철도공사") -> 0 | I16: =COUNTIF(★전체!$I$7644:$I$7976,"국립공원관리공단") -> 0 | J16: 39
A17: 전북 | B17: 1067 | C17: 972 | D17: =COUNTIF(★전체!$I$7977:$I$9125,"지방산림청") -> 0 | E17: =COUNTIF(★전체!$I$7977:$I$9125,"한국농어촌공사") -> 0 | F17: =COUNTIF(★전체!$I$7977:$I$9125,"한국토지주택공사") -> 0 | G17: =COUNTIF(★전체!$I$7977:$I$9125,"한국철도시설공단") -> 0 | H17: =COUNTIF(★전체!$I$7977:$I$9125,"도시철도공사") -> 0 | I17: =COUNTIF(★전체!$I$7977:$I$9125,"국립공원관리공단") -> 0 | J17: 95 | XFC17: =COUNTIF(★전체!$I$7977:$I$9125,"지방산림청") -> 0
A18: 전남 | B18: 897 | C18: 832 | D18: =COUNTIF(★전체!$I$9126:$I$10421,"지방산림청") -> 0 | E18: =COUNTIF(★전체!$I$9126:$I$10421,"한국농어촌공사") -> 0 | F18: =COUNTIF(★전체!$I$9126:$I$10421,"한국토지주택공사") -> 3 | G18: =COUNTIF(★전체!$I$9126:$I$10421,"한국철도시설공단") -> 0 | H18: =COUNTIF(★전체!$I$9126:$I$10421,"도시철도공사") -> 0 | I18: =COUNTIF(★전체!$I$9126:$I$10421,"국립공원관리공단") -> 0 | J18: 62
A19: 경북 | B19: 1016 | C19: 995 | D19: =COUNTIF(★전체!$I$10422:$I$11963,"지방산림청") -> 0 | E19: =COUNTIF(★전체!$I$10422:$I$11963,"한국농어촌공사") -> 0 | F19: =COUNTIF(★전체!$I$10422:$I$11963,"한국토지주택공사") -> 0 | G19: =COUNTIF(★전체!$I$10422:$I$11963,"한국철도시설공단") -> 0 | H19: =COUNTIF(★전체!$I$10422:$I$11963,"도시철도공사") -> 0 | I19: =COUNTIF(★전체!$I$10422:$I$11963,"국립공원관리공단") -> 0 | J19: 21 | K19: 최종완료
A20: 경남 | B20: 2330 | C20: 2174 | D20: =COUNTIF(★전체!$I$11964:$I$14902,"지방산림청") -> 0 | E20: =COUNTIF(★전체!$I$11964:$I$14902,"한국농어촌공사") -> 0 | F20: =COUNTIF(★전체!$I$11964:$I$14902,"한국토지주택공사") -> 4 | G20: =COUNTIF(★전체!$I$11964:$I$14902,"한국철도시설공단") -> 0 | H20: =COUNTIF(★전체!$I$11964:$I$14902,"도시철도공사") -> 0 | I20: =COUNTIF(★전체!$I$11964:$I$14902,"국립공원관리공단") -> 0 | J20: 152 | K20: 최종완료
A21: 제주 | B21: 37 | C21: 37 | D21: 0 | E21: 0 | F21: 0 | G21: 0 | H21: 0 | I21: 0 | J21: 0 | K21: 최종완료

Sheet 급경사지 등급별 (hidden)
A1: 급경사지 등급별 현황('18. 12월말 기준)
H3: (단위 : 개소)
A4: 시도 | B4: 계 | C4: A | D4: B | E4: C | F4: D | G4: E | H4: 비고
A5: 총계 | B5: =SUM(B6:B22) -> 15723 | C5: =SUM(C6:C22) -> 1106 | D5: 7462 | E5: 5987 | F5: 1136 | G5: 32 | H5: 0
A6: 서울 | B6: =SUM(C6:H6) -> 889 | C6: =COUNTIF(★전체!$K$6:$K$894,"A") -> 46 | D6: =COUNTIF(★전체!$K$6:$K$894,"B") -> 513 | E6: =COUNTIF(★전체!$K$6:$K$894,"C") -> 326 | F6: =COUNTIF(★전체!$K$6:$K$894,"D") -> 4 | G6: =COUNTIF(★전체!$K$6:$K$894,"E") -> 0
A7: 부산 | B7: 704 | C7: =COUNTIF(★전체!$K$895:$K$1598,"A") -> 45 | D7: =COUNTIF(★전체!$K$895:$K$1598,"B") -> 385 | E7: =COUNTIF(★전체!$K$895:$K$1598,"C") -> 268 | F7: =COUNTIF(★전체!$K$895:$K$1598,"D") -> 5 | G7: =COUNTIF(★전체!$K$895:$K$1598,"E") -> 1
A8: 대구 | B8: 186 | C8: =COUNTIF(★전체!$K$1599:$K$1784,"A") -> 24 | D8: =COUNTIF(★전체!$K$1599:$K$1784,"B") -> 108 | E8: =COUNTIF(★전체!$K$1599:$K$1784,"C") -> 47 | F8: =COUNTIF(★전체!$K$1599:$K$1784,"D") -> 7 | G8: =COUNTIF(★전체!$K$1599:$K$1779,"E") -> 0
A9: 인천 | B9: 247 | C9: =COUNTIF(★전체!$K$1785:$K$2031,"A") -> 24 | D9: =COUNTIF(★전체!$K$1785:$K$2031,"B") -> 119 | E9: =COUNTIF(★전체!$K$1785:$K$2031,"C") -> 104 | F9: =COUNTIF(★전체!$K$1785:$K$2031,"D") -> 0 | G9: =COUNTIF(★전체!$K$1785:$K$2031,"E") -> 0
A10: 광주 | B10: 106 | C10: =COUNTIF(★전체!$K$2032:$K$2137,"A") -> 6 | D10: =COUNTIF(★전체!$K$2032:$K$2137,"B") -> 62 | E10: =COUNTIF(★전체!$K$2032:$K$2137,"C") -> 35 | F10: =COUNTIF(★전체!$K$2032:$K$2137,"D") -> 3 | G10: =COUNTIF(★전체!$K$2032:$K$2137,"E") -> 0
A11: 대전 | B11: 108 | C11: =COUNTIF(★전체!$K$2138:$K$2245,"A") -> 21 | D11: =COUNTIF(★전체!$K$2138:$K$2245,"B") -> 81 | E11: =COUNTIF(★전체!$K$2138:$K$2245,"C") -> 6 | F11: =COUNTIF(★전체!$K$2138:$K$2245,"D") -> 0 | G11: =COUNTIF(★전체!$K$2138:$K$2245,"E") -> 0
A12: 울산 | B12: 460 | C12: =COUNTIF(★전체!$K$2246:$K$2711,"A") -> 13 | D12: =COUNTIF(★전체!$K$2246:$K$2711,"B") -> 364 | E12: =COUNTIF(★전체!$K$2246:$K$2711,"C") -> 81 | F12: =COUNTIF(★전체!$K$2246:$K$2711,"D") -> 2 | G12: =COUNTIF(★전체!$K$2246:$K$2711,"E") -> 0
A13: 세종 | B13: 83 | C13: =COUNTIF(★전체!$K$2712:$K$2794,"A") -> 6 | D13: =COUNTIF(★전체!$K$2712:$K$2794,"B") -> 77 | E13: =COUNTIF(★전체!$K$2712:$K$2794,"C") -> 0 | F13: =COUNTIF(★전체!$K$2712:$K$2794,"D") -> 0 | G13: =COUNTIF(★전체!$K$2712:$K$2794,"E") -> 0
A14: 경기 | B14: 1097 | C14: =COUNTIF(★전체!$K$2795:$K$3891,"A") -> 118 | D14: =COUNTIF(★전체!$K$2795:$K$3891,"B") -> 631 | E14: =COUNTIF(★전체!$K$2795:$K$3891,"C") -> 299 | F14: =COUNTIF(★전체!$K$2795:$K$3891,"D") -> 49 | G14: =COUNTIF(★전체!$K$2795:$K$3891,"E") -> 0
A15: 강원 | B15: 2342 | C15: =COUNTIF(★전체!$K$3892:$K$6233,"A") -> 95 | D15: =COUNTIF(★전체!$K$3892:$K$6233,"B") -> 645 | E15: =COUNTIF(★전체!$K$3892:$K$6233,"C") -> 1398 | F15: =COUNTIF(★전체!$K$3892:$K$6233,"D") -> 202 | G15: =COUNTIF(★전체!$K$3892:$K$6233,"E") -> 2
A16: 충북 | B16: 1410 | C16: =COUNTIF(★전체!$K$6234:$K$7643,"A") -> 154 | D16: =COUNTIF(★전체!$K$6234:$K$7643,"B") -> 606 | E16: =COUNTIF(★전체!$K$6234:$K$7643,"C") -> 464 | F16: =COUNTIF(★전체!$K$6234:$K$7643,"D") -> 180 | G16: =COUNTIF(★전체!$K$6234:$K$7643,"E") -> 6
A17: 충남 | B17: 324 | C17: =COUNTIF(★전체!$K$7644:$K$7976,"A") -> 85 | D17: =COUNTIF(★전체!$K$7644:$K$7976,"B") -> 160 | E17: =COUNTIF(★전체!$K$7644:$K$7976,"C") -> 42 | F17: =COUNTIF(★전체!$K$7644:$K$7976,"D") -> 36 | G17: =COUNTIF(★전체!$K$7644:$K$7976,"E") -> 1
A18: 전북 | B18: 1149 | C18: =COUNTIF(★전체!$K$7977:$K$9125,"A") -> 90 | D18: =COUNTIF(★전체!$K$7977:$K$9125,"B") -> 483 | E18: =COUNTIF(★전체!$K$7977:$K$9125,"C") -> 481 | F18: =COUNTIF(★전체!$K$7977:$K$9125,"D") -> 91 | G18: =COUNTIF(★전체!$K$7977:$K$9125,"E") -> 4 | XFA18: =COUNTIF(★전체!$I$7977:$I$9125,"지방산림청") -> 0
A19: 전남 | B19: 1296 | C19: =COUNTIF(★전체!$K$9126:$K$10421,"A") -> 58 | D19: =COUNTIF(★전체!$K$9126:$K$10421,"B") -> 571 | E19: =COUNTIF(★전체!$K$9126:$K$10421,"C") -> 418 | F19: =COUNTIF(★전체!$K$9126:$K$10421,"D") -> 246 | G19: =COUNTIF(★전체!$K$9126:$K$10421,"E") -> 3
A20: 경북 | B20: 1728 | C20: =COUNTIF(★전체!$K$10422:$K$11963,"A") -> 105 | D20: 767 | E20: =COUNTIF(★전체!$K$10422:$K$11963,"C") -> 680 | F20: =COUNTIF(★전체!$K$10422:$K$11963,"D") -> 166 | G20: =COUNTIF(★전체!$K$10422:$K$11963,"E") -> 10
A21: 경남 | B21: 2937 | C21: =COUNTIF(★전체!$K$11964:$K$14902,"A") -> 165 | D21: =COUNTIF(★전체!$K$11964:$K$14902,"B") -> 1482 | E21: =COUNTIF(★전체!$K$11964:$K$14902,"C") -> 1181 | F21: =COUNTIF(★전체!$K$11964:$K$14902,"D") -> 105 | G21: =COUNTIF(★전체!$K$11964:$K$14902,"E") -> 4
A22: 제주 | B22: 657 | C22: =COUNTIF(★전체!$K$14903:$K$114657,"A") -> 51 | D22: =COUNTIF(★전체!$K$14903:$K$114657,"b") -> 408 | E22: =COUNTIF(★전체!$K$14903:$K$114657,"C") -> 157 | F22: =COUNTIF(★전체!$K$14903:$K$114657,"D") -> 40 | G22: =COUNTIF(★전체!$K$14903:$K$114657,"E") -> 1

Sheet 급경사지 용도별 (hidden)
A1: 급경사지 관리기관별 현황('18. 12월말 기준)
A3: 시도 | B3: 계 | C3: 도로 | D3: 아파트 | E3: 주택 | F3: 공단 | G3: 공원 | H3: 철도 | I3: 기타 | J3: 비고
A4: 총계 | B4: =SUM(B5:B21) -> 15203 | C4: =SUM(C5:C21) -> 7902 | D4: 796 | E4: 1753 | F4: 209 | G4: 710 | H4: 1262 | I4: =SUM(I5:I21) -> 2571
A5: 서울 | B5: =SUM(C5:J5) -> 775 | C5: =COUNTIF(★전체!$E$6:$E$894,"도로(지,군,비)") -> 202 | D5: =COUNTIF(★전체!$E$6:$E$894,"아파트") -> 243 | E5: =COUNTIF(★전체!$E$6:$E$894,"주택") -> 230 | F5: =COUNTIF(★전체!$E$6:$E$894,"공단") -> 0 | G5: =COUNTIF(★전체!$E$6:$E$894,"공원") -> 88 | H5: =COUNTIF(★전체!$E$6:$E$894,"철도") -> 6 | I5: =COUNTIF(★전체!$E$6:$E$894,"기타") -> 6
A6: 부산 | B6: 702 | C6: =COUNTIF(★전체!$E$895:$E$1598,"도로") -> 251 | D6: =COUNTIF(★전체!$E$895:$E$1598,"아파트") -> 159 | E6: =COUNTIF(★전체!$E$895:$E$1598,"주택") -> 73 | F6: =COUNTIF(★전체!$E$895:$E$1598,"공단") -> 15 | G6: =COUNTIF(★전체!$E$895:$E$1598,"공원") -> 28 | H6: =COUNTIF(★전체!$E$895:$E$1598,"철도") -> 0 | I6: =COUNTIF(★전체!$E$895:$E$1598,"기타") -> 176
A7: 대구 | B7: 185 | C7: =COUNTIF(★전체!$E$1599:$E$1784,"도로") -> 52 | D7: =COUNTIF(★전체!$E$1599:$E$1784,"아파트") -> 22 | E7: =COUNTIF(★전체!$E$1599:$E$1784,"주택") -> 9 | F7: =COUNTIF(★전체!$E$1599:$E$1784,"공단") -> 11 | G7: =COUNTIF(★전체!$E$1599:$E$1784,"공원") -> 18 | H7: =COUNTIF(★전체!$E$1599:$E$1784,"철도") -> 8 | I7: =COUNTIF(★전체!$E$1599:$E$1784,"기타") -> 65
A8: 인천 | B8: 247 | C8: =COUNTIF(★전체!$E$1785:$E$2031,"도로") -> 55 | D8: =COUNTIF(★전체!$E$1785:$E$2031,"아파트") -> 49 | E8: =COUNTIF(★전체!$E$1785:$E$2031,"주택") -> 25 | F8: =COUNTIF(★전체!$E$1785:$E$2031,"공단") -> 0 | G8: =COUNTIF(★전체!$E$1785:$E$2031,"공원") -> 12 | H8: =COUNTIF(★전체!$E$1785:$E$2031,"철도") -> 2 | I8: =COUNTIF(★전체!$E$1785:$E$2031,"기타") -> 104
A9: 광주 | B9: 105 | C9: =COUNTIF(★전체!$E$2032:$E$2137,"도로") -> 55 | D9: =COUNTIF(★전체!$E$2032:$E$2137,"아파트") -> 11 | E9: =COUNTIF(★전체!$E$2032:$E$2137,"주택") -> 1 | F9: =COUNTIF(★전체!$E$2032:$E$2137,"공단") -> 1 | G9: =COUNTIF(★전체!$E$2032:$DS$2137,"공원") -> 10 | H9: =COUNTIF(★전체!$E$2032:$DS$2137,"철도") -> 15 | I9: =COUNTIF(★전체!$E$2032:$E$2137,"기타") -> 12
A10: 대전 | B10: 108 | C10: =COUNTIF(★전체!$E$2138:$E$2245,"도로") -> 0 | D10: =COUNTIF(★전체!$E$2138:$E$2245,"아파트") -> 3 | E10: =COUNTIF(★전체!$E$2138:$E$2245,"주택") -> 0 | F10: =COUNTIF(★전체!$E$2138:$E$2245,"공단") -> 0 | G10: =COUNTIF(★전체!$E$2138:$E$2245,"공원") -> 0 | H10: =COUNTIF(★전체!$E$2138:$E$2245,"철도") -> 5 | I10: =COUNTIF(★전체!$E$2138:$E$2245,"기타") -> 100
A11: 울산 | B11: 466 | C11: =COUNTIF(★전체!$E$2246:$E$2711,"도로") -> 277 | D11: =COUNTIF(★전체!$E$2246:$E$2711,"아파트") -> 35 | E11: =COUNTIF(★전체!$E$2246:$E$2711,"주택") -> 11 | F11: =COUNTIF(★전체!$E$2246:$E$2711,"공단") -> 10 | G11: =COUNTIF(★전체!$E$2246:$E$2711,"공원") -> 13 | H11: =COUNTIF(★전체!$E$2246:$E$2711,"철도") -> 5 | I11: =COUNTIF(★전체!$E$2246:$E$2711,"기타") -> 115
A12: 세종 | B12: 83 | C12: =COUNTIF(★전체!$E$2712:$E$2794,"도로") -> 3 | D12: =COUNTIF(★전체!$E$2712:$E$2794,"아파트") -> 0 | E12: =COUNTIF(★전체!$E$2712:$E$2794,"주택") -> 0 | F12: =COUNTIF(★전체!$E$2712:$E$2794,"공단") -> 0 | G12: =COUNTIF(★전체!$E$2712:$E$2794,"공원") -> 0 | H12: =COUNTIF(★전체!$E$2712:$E$2794,"철도") -> 80 | I12: =COUNTIF(★전체!$E$2712:$E$2794,"기타") -> 0
A13: 경기 | B13: 1094 | C13: =COUNTIF(★전체!$E$2795:$E$3891,"도로") -> 434 | D13: =COUNTIF(★전체!$E$2795:$E$3891,"아파트") -> 91 | E13: =COUNTIF(★전체!$E$2795:$E$3891,"주택") -> 84 | F13: =COUNTIF(★전체!$E$2795:$E$3891,"공단") -> 82 | G13: =COUNTIF(★전체!$E$2795:$E$3891,"공원") -> 60 | H13: =COUNTIF(★전체!$E$2795:$E$3891,"철도") -> 167 | I13: =COUNTIF(★전체!$E$2795:$E$3891,"기타") -> 176
A14: 강원 | B14: 2342 | C14: =COUNTIF(★전체!$E$3892:$E$6233,"도로") -> 1391 | D14: =COUNTIF(★전체!$E$3892:$E$6233,"아파트") -> 27 | E14: =COUNTIF(★전체!$E$3892:$E$6233,"주택") -> 384 | F14: =COUNTIF(★전체!$E$3892:$E$6233,"공단") -> 9 | G14: =COUNTIF(★전체!$E$3892:$E$6233,"공원") -> 163 | H14: =COUNTIF(★전체!$E$3892:$E$6233,"철도") -> 251 | I14: =COUNTIF(★전체!$E$3892:$E$6233,"기타") -> 117
A15: 충북 | B15: 1410 | C15: =COUNTIF(★전체!$E$6234:$E$7643,"도로") -> 780 | D15: =COUNTIF(★전체!$E$6234:$E$7643,"아파트") -> 29 | E15: =COUNTIF(★전체!$E$6234:$E$7643,"주택") -> 149 | F15: =COUNTIF(★전체!$E$6234:$E$7643,"공단") -> 23 | G15: =COUNTIF(★전체!$E$6234:$E$7643,"공원") -> 47 | H15: =COUNTIF(★전체!$E$6234:$E$7643,"철도") -> 178 | I15: =COUNTIF(★전체!$E$6234:$E$7643,"기타") -> 204
A16: 충남 | B16: 327 | C16: =COUNTIF(★전체!$E$7644:$E$7976,"도로") -> 94 | D16: =COUNTIF(★전체!$E$7644:$E$7976,"아파트") -> 5 | E16: =COUNTIF(★전체!$E$7644:$E$7976,"주택") -> 17 | F16: =COUNTIF(★전체!$E$7644:$E$7976,"공단") -> 7 | G16: =COUNTIF(★전체!$E$7644:$E$7976,"공원") -> 3 | H16: =COUNTIF(★전체!$E$7644:$E$7976,"철도") -> 177 | I16: =COUNTIF(★전체!$E$7644:$E$7976,"기타") -> 24
A17: 전북 | B17: 1138 | C17: =COUNTIF(★전체!$E$7977:$E$9125,"도로") -> 803 | D17: =COUNTIF(★전체!$E$7977:$E$9125,"아파트") -> 41 | E17: =COUNTIF(★전체!$E$7977:$E$9125,"주택") -> 116 | F17: =COUNTIF(★전체!$E$7977:$E$9125,"공단") -> 8 | G17: =COUNTIF(★전체!$E$7977:$E$9125,"공원") -> 58 | H17: =COUNTIF(★전체!$E$7977:$E$9125,"철도") -> 0 | I17: =COUNTIF(★전체!$E$7977:$E$9125,"기타") -> 112 | XFC17: =COUNTIF(★전체!$I$7977:$I$9125,"지방산림청") -> 0
A18: 전남 | B18: 1258 | C18: =COUNTIF(★전체!$E$9126:$E$10421,"도로") -> 750 | D18: =COUNTIF(★전체!$E$9126:$E$10421,"아파트") -> 12 | E18: =COUNTIF(★전체!$E$9126:$E$10421,"주택") -> 126 | F18: =COUNTIF(★전체!$E$9126:$E$10421,"공단") -> 2 | G18: =COUNTIF(★전체!$E$9126:$E$10421,"공원") -> 19 | H18: =COUNTIF(★전체!$E$9126:$E$10421,"철도") -> 1 | I18: =COUNTIF(★전체!$E$9126:$E$10421,"기타") -> 348
A19: 경북 | B19: 1511 | C19: =COUNTIF(★전체!$E$10422:$E$11963,"도로") -> 1029 | D19: =COUNTIF(★전체!$E$10422:$E$11963,"아파트") -> 15 | E19: =COUNTIF(★전체!$E$10422:$E$11963,"주택") -> 237 | F19: =COUNTIF(★전체!$E$10422:$E$11963,"공단") -> 6 | G19: =COUNTIF(★전체!$E$10422:$E$11963,"공원") -> 25 | H19: =COUNTIF(★전체!$E$10422:$E$11963,"철도") -> 0 | I19: =COUNTIF(★전체!$E$10422:$E$11963,"기타") -> 199
A20: 경남 | B20: 2803 | C20: =COUNTIF(★전체!$E$11964:$E$14902,"도로") -> 1571 | D20: =COUNTIF(★전체!$E$11964:$E$14902,"아파트") -> 49 | E20: =COUNTIF(★전체!$E$11964:$E$14902,"주택") -> 266 | F20: =COUNTIF(★전체!$E$11964:$E$14902,"공단") -> 35 | G20: =COUNTIF(★전체!$E$11964:$E$14902,"공원") -> 109 | H20: =COUNTIF(★전체!$E$11964:$E$14902,"철도") -> 367 | I20: =COUNTIF(★전체!$E$11964:$E$14902,"기타") -> 406
A21: 제주 | B21: 649 | C21: =COUNTIF(★전체!$E$14903:$E$114657,"도로") -> 155 | D21: =COUNTIF(★전체!$E$14903:$E$114657,"아파트") -> 5 | E21: =COUNTIF(★전체!$E$14903:$E$114657,"주택") -> 25 | F21: =COUNTIF(★전체!$E$14903:$E$114657,"공단") -> 0 | G21: =COUNTIF(★전체!$E$14903:$E$114657,"공원") -> 57 | H21: =COUNTIF(★전체!$E$14903:$E$114657,"철도") -> 0 | I21: =COUNTIF(★전체!$E$14903:$E$114657,"기타") -> 407

Sheet 급경사지 구조별 현황 (hidden)
A1: 급경사지 관리기관별 현황('18. 12월말 기준)
A3: 시도 | B3: 계 | C3: 토사 | D3: 옹벽 | E3: 석축 | F3: 암반 | G3: 복합
A4: 총계 | B4: =SUM(B5:B21) -> 15401 | C4: =SUM(C5:C21) -> 3933 | D4: 2076 | E4: 886 | F4: 3608 | G4: 4898
A5: 서울 | B5: =SUM(C5:G5) -> 889 | C5: =COUNTIF(★전체!$F$6:$F$894,"토사") -> 53 | D5: =COUNTIF(★전체!$F$6:$F$894,"옹벽") -> 402 | E5: =COUNTIF(★전체!$F$6:$F$894,"석축") -> 108 | F5: =COUNTIF(★전체!$F$6:$F$894,"암반") -> 290 | G5: =COUNTIF(★전체!$F$6:$F$894,"복합") -> 36
A6: 부산 | B6: 704 | C6: =COUNTIF(★전체!$F$895:$F$1598,"토사") -> 111 | D6: =COUNTIF(★전체!$F$895:$F$1598,"옹벽") -> 217 | E6: =COUNTIF(★전체!$F$895:$F$1598,"석축") -> 29 | F6: =COUNTIF(★전체!$F$895:$F$1598,"암반") -> 77 | G6: =COUNTIF(★전체!$F$895:$F$1598,"복합") -> 270
A7: 대구 | B7: 186 | C7: =COUNTIF(★전체!$F$1599:$F$1784,"토사") -> 47 | D7: =COUNTIF(★전체!$F$1599:$F$1784,"옹벽") -> 59 | E7: =COUNTIF(★전체!$F$1599:$F$1784,"석축") -> 3 | F7: =COUNTIF(★전체!$F$1599:$F$1784,"암반") -> 20 | G7: =COUNTIF(★전체!$F$1599:$F$1784,"복합") -> 57
A8: 인천 | B8: 247 | C8: =COUNTIF(★전체!$F$1785:$F$2031,"토사") -> 37 | D8: =COUNTIF(★전체!$F$1785:$F$2031,"옹벽") -> 116 | E8: =COUNTIF(★전체!$F$1785:$F$2031,"석축") -> 24 | F8: =COUNTIF(★전체!$F$1785:$F$2031,"암반") -> 31 | G8: =COUNTIF(★전체!$F$1785:$F$2031,"복합") -> 39
A9: 광주 | B9: 105 | C9: =COUNTIF(★전체!$F$2032:$F$2137,"토사") -> 25 | D9: =COUNTIF(★전체!$F$2032:$F$2137,"옹벽") -> 16 | E9: =COUNTIF(★전체!$F$2032:$F$2137,"석축") -> 7 | F9: =COUNTIF(★전체!$F$2032:$F$2137,"암반") -> 10 | G9: =COUNTIF(★전체!$F$2032:$F$2137,"복합") -> 47
A10: 대전 | B10: 108 | C10: =COUNTIF(★전체!$F$2138:$F$2245,"토사") -> 20 | D10: =COUNTIF(★전체!$F$2138:$F$2245,"옹벽") -> 29 | E10: =COUNTIF(★전체!$F$2138:$F$2245,"석축") -> 0 | F10: =COUNTIF(★전체!$F$2138:$F$2245,"암반") -> 1 | G10: =COUNTIF(★전체!$F$2138:$F$2245,"복합") -> 58
A11: 울산 | B11: 464 | C11: =COUNTIF(★전체!$F$2246:$F$2711,"토사") -> 75 | D11: =COUNTIF(★전체!$F$2246:$F$2711,"옹벽") -> 65 | E11: =COUNTIF(★전체!$F$2246:$F$2711,"석축") -> 5 | F11: =COUNTIF(★전체!$F$2246:$F$2711,"암반") -> 132 | G11: =COUNTIF(★전체!$F$2246:$F$2711,"복합") -> 187
A12: 세종 | B12: 83 | C12: =COUNTIF(★전체!$F$2712:$F$2794,"토사") -> 35 | D12: =COUNTIF(★전체!$F$2712:$F$2794,"옹벽") -> 6 | E12: =COUNTIF(★전체!$F$2712:$F$2794,"석축") -> 0 | F12: =COUNTIF(★전체!$F$2712:$F$2794,"암반") -> 2 | G12: =COUNTIF(★전체!$F$2712:$F$2794,"복합") -> 40
A13: 경기 | B13: 1095 | C13: =COUNTIF(★전체!$F$2795:$F$3891,"토사") -> 323 | D13: =COUNTIF(★전체!$F$2795:$F$3891,"옹벽") -> 177 | E13: =COUNTIF(★전체!$F$2795:$F$3891,"석축") -> 53 | F13: =COUNTIF(★전체!$F$2795:$F$3891,"암반") -> 193 | G13: =COUNTIF(★전체!$F$2795:$F$3891,"복합") -> 349
A14: 강원 | B14: 2296 | C14: =COUNTIF(★전체!$F$3892:$F$6233,"토사") -> 496 | D14: =COUNTIF(★전체!$F$3892:$F$6233,"옹벽") -> 141 | E14: =COUNTIF(★전체!$F$3892:$F$6233,"석축") -> 224 | F14: =COUNTIF(★전체!$F$3892:$F$6233,"암반") -> 507 | G14: =COUNTIF(★전체!$F$3892:$F$6233,"복합") -> 928
A15: 충북 | B15: 1409 | C15: =COUNTIF(★전체!$F$6234:$F$7643,"토사") -> 494 | D15: =COUNTIF(★전체!$F$6234:$F$7643,"옹벽") -> 87 | E15: =COUNTIF(★전체!$F$6234:$F$7643,"석축") -> 74 | F15: =COUNTIF(★전체!$F$6234:$F$7643,"암반") -> 353 | G15: =COUNTIF(★전체!$F$6234:$F$7643,"복합") -> 401
A16: 충남 | B16: 332 | C16: =COUNTIF(★전체!$F$7644:$F$7976,"토사") -> 79 | D16: =COUNTIF(★전체!$F$7644:$F$7976,"옹벽") -> 8 | E16: =COUNTIF(★전체!$F$7644:$F$7976,"석축") -> 3 | F16: =COUNTIF(★전체!$F$7644:$F$7976,"암반") -> 86 | G16: =COUNTIF(★전체!$F$7644:$F$7976,"복합") -> 156
A17: 전북 | B17: 1118 | C17: =COUNTIF(★전체!$F$7977:$F$9125,"토사") -> 350 | D17: =COUNTIF(★전체!$F$7977:$F$9125,"옹벽") -> 200 | E17: =COUNTIF(★전체!$F$7977:$F$9125,"석축") -> 33 | F17: =COUNTIF(★전체!$F$7977:$F$9125,"암반") -> 339 | G17: =COUNTIF(★전체!$F$7977:$F$9125,"복합") -> 196 | XEZ17: =COUNTIF(★전체!$I$7977:$I$9125,"지방산림청") -> 0
A18: 전남 | B18: 1293 | C18: =COUNTIF(★전체!$F$9126:$F$10421,"토사") -> 524 | D18: =COUNTIF(★전체!$F$9126:$F$10421,"옹벽") -> 154 | E18: =COUNTIF(★전체!$F$9126:$F$10421,"석축") -> 25 | F18: =COUNTIF(★전체!$F$9126:$F$10421,"암반") -> 290 | G18: =COUNTIF(★전체!$F$9126:$F$10421,"복합") -> 300
A19: 경북 | B19: 1485 | C19: =COUNTIF(★전체!$F$10422:$F$11963,"토사") -> 527 | D19: =COUNTIF(★전체!$F$10422:$F$11963,"옹벽") -> 116 | E19: =COUNTIF(★전체!$F$10422:$F$11963,"석축") -> 41 | F19: =COUNTIF(★전체!$F$10422:$F$11963,"암반") -> 509 | G19: =COUNTIF(★전체!$F$10422:$F$11963,"복합") -> 292
A20: 경남 | B20: 2933 | C20: =COUNTIF(★전체!$F$11964:$F$14902,"토사") -> 659 | D20: =COUNTIF(★전체!$F$11964:$F$14902,"옹벽") -> 222 | E20: =COUNTIF(★전체!$F$11964:$F$14902,"석축") -> 244 | F20: =COUNTIF(★전체!$F$11964:$F$14902,"암반") -> 537 | G20: =COUNTIF(★전체!$F$11964:$F$14902,"복합") -> 1271
A21: 제주 | B21: 654 | C21: =COUNTIF(★전체!$F$14903:$F$114657,"토사") -> 78 | D21: =COUNTIF(★전체!$F$14903:$F$114657,"옹벽") -> 61 | E21: =COUNTIF(★전체!$F$14903:$F$114657,"석축") -> 13 | F21: =COUNTIF(★전체!$F$14903:$F$114657,"암반") -> 231 | G21: =COUNTIF(★전체!$F$14903:$F$114657,"복합") -> 271

Sheet 급경사지 유형별 현황 (hidden)
A1: 급경사지 관리기관별 현황('18. 12월말 기준)
A3: 시도 | B3: 합계 | E3: 자연비탈면 | H3: 인공비탈면 | K3: 비고
B4: 소계 | C4: 공공 | D4: 민간 | E4: 소계 | F4: 공공 | G4: 민간 | H4: 소계 | I4: 공공 | J4: 민간
A5: 계 | B5: =SUM(B6:B22) -> 15075 | C5: =SUM(C6:C22) -> 12693 | D5: 2382 | E5: 2660 | F5: 2299 | G5: 361 | H5: =SUM(H6:H22) -> 12415 | I5: =SUM(I6:I22) -> 10394 | J5: =SUM(J6:J22) -> 2021
A6: 서울 | B6: =C6+D6 -> 889 | C6: =F6+I6 -> 489 | D6: =G6+J6 -> 400 | E6: =F6+G6 -> 57 | F6: 33 | G6: 24 | H6: =I6+J6 -> 832 | I6: 456 | J6: 376
A7: 부산 | B7: =C7+D7 -> 704 | C7: =F7+I7 -> 385 | D7: =G7+J7 -> 319 | E7: =F7+G7 -> 119 | F7: 61 | G7: 58 | H7: =I7+J7 -> 585 | I7: 324 | J7: 261
A8: 대구 | B8: 186 | C8: 131 | D8: 55 | E8: 21 | F8: 19 | G8: 2 | H8: 165 | I8: 112 | J8: 53
A9: 인천 | B9: 247 | C9: 114 | D9: 133 | E9: 34 | F9: 18 | G9: 16 | H9: 213 | I9: 96 | J9: 117
A10: 광주 | B10: 157 | C10: 93 | D10: 64 | E10: 2 | F10: 2 | H10: 155 | I10: 91 | J10: 64
A11: 대전 | B11: 198 | C11: 165 | D11: 33 | E11: =F11+G11 -> 4 | G11: 4 | H11: 194 | I11: 165 | J11: 29
A12: 울산 | B12: 466 | C12: 420 | D12: 46 | E12: 21 | F12: 19 | G12: 2 | H12: 445 | I12: 401 | J12: 44
A13: 세종 | B13: 83 | C13: 75 | D13: 8 | E13: 5 | F13: 3 | G13: 2 | H13: 78 | I13: 72 | J13: 6
A14: 경기 | B14: 1097 | C14: 758 | D14: 339 | E14: 80 | F14: 54 | G14: 26 | H14: 1017 | I14: 704 | J14: 313
A15: 강원 | B15: 2342 | C15: 2238 | D15: 104 | E15: 523 | F15: 479 | G15: 44 | H15: 1819 | I15: 1759 | J15: 60
A16: 충북 | B16: 1410 | C16: 1145 | D16: 265 | E16: 185 | F16: 130 | G16: 55 | H16: 1225 | I16: 1015 | J16: 210
A17: 충남 | B17: 333 | C17: 262 | D17: 71 | E17: 76 | F17: 50 | G17: 26 | H17: 257 | I17: 212 | J17: 45
A18: 전북 | B18: 1149 | C18: 1044 | D18: 105 | E18: 174 | F18: 162 | G18: 12 | H18: 975 | I18: 882 | J18: 93 | XFC18: =COUNTIF(★전체!$I$7977:$I$9125,"지방산림청") -> 0
A19: 전남 | B19: 1296 | C19: 1129 | D19: 167 | E19: 339 | F19: 271 | G19: 68 | H19: 957 | I19: 858 | J19: 99
A20: 경북 | B20: 1542 | C20: 1507 | D20: 35 | E20: 443 | F20: 439 | G20: 4 | H20: 1099 | I20: 1068 | J20: 31
A21: 경남 | B21: 2939 | C21: 2703 | D21: 236 | E21: 562 | F21: 544 | G21: 18 | H21: 2377 | I21: 2159 | J21: 218
A22: 제주 | B22: 37 | C22: 35 | D22: 2 | E22: 15 | F22: 15 | H22: 22 | I22: 20 | J22: 2

Sheet 붕괴위험지역 정비사업 현황 (hidden)
A1: 급경사지 관리기관별 현황('18. 12월말 기준)
A3: 시도 | B3: 급경사지 현황 | C3: 급경사지 붕괴위험지역 지정(고시) 현황
C4: 계 (1+2) | D4: 공공시설 | H4: 민간시설
D5: 소계 | E5: 정비완료 | F5: 정비중 | G5: 정비예정 | H5: 소계 | I5: 정비완료 | J5: 정비중 | K5: 정비예정
A6: 계 | B6: 15075 | C6: =SUM(C7:C23) -> 0 | D6: =SUM(D7:D23) -> 0 | E6: =SUM(E7:E23) -> 0 | F6: 0 | G6: 0 | H6: =SUM(H7:H23) -> 0 | I6: =SUM(I7:I23) -> 0 | J6: 0 | K6: 0
A7: 서울 | B7: 889 | C7: =D7+H7 -> 0 | D7: =E7+F7+G7 -> 0 | H7: =I7+J7+K7 -> 0
A8: 부산 | B8: 704 | C8: =D8+H8 -> 0 | D8: =E8+F8+G8 -> 0 | H8: =I8+J8+K8 -> 0
A9: 대구 | B9: 186 | C9: 0 | D9: 0 | H9: 0
A10: 인천 | B10: 247 | C10: 0 | D10: 0 | H10: 0
A11: 광주 | B11: 157 | C11: 0 | D11: 0 | H11: 0
A12: 대전 | B12: 198 | C12: 0 | D12: 0 | H12: 0
A13: 울산 | B13: 466 | C13: 0 | D13: 0 | H13: 0
A14: 세종 | B14: 83 | C14: 0 | D14: 0 | H14: 0
A15: 경기 | B15: 1097 | C15: 0 | D15: 0 | H15: 0
A16: 강원 | B16: 2342 | C16: 0 | D16: 0 | H16: 0
A17: 충북 | B17: 1410 | C17: 0 | D17: 0 | H17: 0
A18: 충남 | B18: 333 | C18: 0 | D18: 0 | H18: 0
A19: 전북 | B19: 1149 | C19: 0 | D19: 0 | H19: 0 | XFC19: =COUNTIF(★전체!$I$7977:$I$9125,"지방산림청") -> 0
A20: 전남 | B20: 1296 | C20: 0 | D20: 0 | H20: 0
A21: 경북 | B21: 1542 | C21: 0 | D21: 0 | H21: 0
A22: 경남 | B22: 2939 | C22: 0 | D22: 0 | H22: 0
A23: 제주 | B23: 37 | C23: 0 | D23: 0 | H23: 0
C36: 185 | I36: 93 | J36: 166206 | P36: 79
J37: 83103

Sheet 붕괴위험지역 정비사업 대상 (hidden)
G1: =G7+G9+G11+G12+G14+G16+G18+G20+G22+G24+G26+G28+G30+G32+G34+G36+G38 -> 141
A2: 시도별 | B2: 급경사지 현황 | C2: 정비대상 | E2: 2018년까지 | G2: 2019년 추진 | I2: 2020년 이후
C3: 완료 | D3: 627 | E3: 완료 | F3: =E5 -> 627 | G3: 완료예정 | H3: =G6 -> 43 | I3: 잔량 | J3: =I5 -> 868
C4: 사업량 (완료) | D4: 사업비 (국비) | E4: 사업량 | F4: 사업비 (국비) | G4: 사업량 (완료예정) | H4: 사업비 (국비) | I4: 사업량 * 계속사업포함 | J4: 사업비 (국비) | K4: =M4+O4 -> 0
A5: 계 | B5: 15075 | C5: =C7+C9+C12+C14+C16+C18+C20+C22+C24+C26+C28+C30+C32+C34+C36+C38 -> 1565 | D5: =D7+D9+D11+D12+D14+D16+D18+D20+D22+D24+D26+D28+D30+D32+D34+D36+D38 -> 2240781 | E5: =E7+E9+E12+E14+E16+E18+E20+E22+E24+E26+E28+E30+E32+E34+E36+E38 -> 627 | F5: =F7+F9+F11+F12+F14+F16+F18+F20+F22+F24+F28+F30+F32+F34+F36+F38+F26 -> 875561 | G5: =G7+G9+G11+G12+G14+G16+G18+G20+G22+G24+G28+G30+G32+G34+G36+G38+G26 -> 141 | H5: =H7+H9+H11+H12+H14+H16+H18+H20+H22+H24+H28+H30+H32+H34+H36+H38+H26 -> 169332 | I5: =I7+I9+I11+I12+I14+I16+I18+I20+I22+I24+I28+I30+I32+I34+I36+I38+I26 -> 868 | J5: =J7+J9+J11+J12+J14+J16+J18+J20+J22+J24+J28+J30+J32+J34+J36+J38+J26 -> 1195888
C6: =C8+C10+C13+C15+C17+C19+C21+C23+C25+C27+C29+C31+C33+C35+C37+C39 -> 627 | D6: =ROUNDUP(D8+D10+D13+D15+D17+D19+D21+D23+D25+D27+D29+D31+D33+D35+D37+D39,0) -> 1073538 | F6: =F8+F10+F13+F15+F17+F19+F21+F23+F25+F27+F29+F31+F33+F35+F37+F39 -> 394284 | G6: 43 | H6: =H8+H10+H13+H15+H17+H19+H21+H23+H25+H27+H29+H31+H33+H35+H37+H39 -> 84666 | J6: =J8+J10+J13+J15+J17+J19+J21+J23+J25+J27+J29+J31+J33+J35+J37+J39 -> 594588
A7: 서울 | B7: 889 | C7: 7 | D7: =F7+H7+J7 -> 6907 | E7: 6 | F7: 6907 | G7: 0 | H7: 0 | I7: 1 | J7: 0
C8: 6 | D8: 870 | F8: 870
A9: 부산 | B9: 704 | C9: 10 | D9: 25429 | E9: 10 | F9: 25429 | G9: 0 | H9: 0 | J9: 0
C10: 10 | D10: 12698 | F10: 12698 | G10: 0 | H10: 0 | J10: 0
A11: 대구 | B11: 186 | C11: 없음 | D11: 0 | E11: 없음
A12: 인천 | B12: 247 | C12: 3 | D12: 1414 | E12: 3 | F12: 1414 | G12: 0 | H12: 0 | J12: 0
C13: 3 | D13: 0
A14: 광주 | B14: 157 | C14: 11 | D14: 6610 | E14: 8 | F14: 5550 | I14: 3 | J14: 1060
C15: 8 | D15: 3105 | F15: 2775 | J15: 330
A16: 대전 | B16: 198 | C16: 1 | D16: 300 | E16: 1 | F16: 300
C17: 1 | D17: 0
A18: 울산 | B18: 466 | C18: 2 | D18: 4000 | E18: 2 | F18: 4000
C19: 2 | D19: 2000 | F19: 2000
A20: 세종 | B20: 83 | C20: 1 | D20: 4000 | F20: 0 | G20: 1 | H20: 1000 | I20: 1 | J20: 3000
D21: 2000 | H21: 500 | J21: 1500
A22: 경기 | B22: 1097 | C22: 89 | D22: 43474 | E22: 70 | F22: 29373 | G22: 2 | H22: 2518 | I22: 18 | J22: 11583
C23: 70 | D23: 19339.5 | F23: 13169 | G23: 1 | H23: 1259 | J23: 4911.5
A24: 강원 | B24: 2342 | C24: 363 | D24: 623923 | E24: 133 | F24: 246722 | G24: 33 | H24: 39822 | I24: 211 | J24: 337379
C25: 133 | D25: 309246.5 | F25: 120671 | G25: 19 | H25: 19911 | J25: 168664.5
A26: 충북 | B26: 1410 | C26: 188 | D26: =F26+H26+J26 -> 184016 | E26: 74 | F26: 63756 | G26: 12 | H26: 10680 | I26: 109 | J26: 109580
C27: 74 | D27: 86347 | F27: 26517 | G27: 5 | H27: 5340 | J27: 54490
A28: 충남 | B28: 333 | C28: 87 | D28: 78167 | E28: 32 | F28: 32369 | G28: 13 | H28: 9628 | I28: 48 | J28: 36170
C29: 32 | D29: 37573 | F29: 14949 | G29: 7 | H29: 4814 | J29: 17810
A30: 전북 | B30: 1149 | C30: 107 | D30: 192512 | E30: 47 | F30: 76254 | G30: 17 | H30: 18960 | I30: 55 | J30: 97298
C31: 47 | D31: 90901 | F31: 33692 | G31: 5 | H31: 9480 | J31: 47729
A32: 전남 | B32: 1296 | C32: 337 | D32: 456081 | E32: 90 | F32: 125055 | G32: 27 | H32: 32316 | I32: 230 | J32: 298710
C33: 90 | D33: 219814 | F33: 54507 | G33: 17 | H33: 16158 | J33: 149149
A34: 경북 | B34: 1542 | C34: 160 | D34: 239773 | E34: 56 | F34: 85241 | G34: 13 | H34: 22530 | I34: 96 | J34: 132002 | XER34: =COUNTIF(★전체!$I$7977:$I$9125,"지방산림청") -> 0
C35: 56 | D35: 108522 | F35: 31556 | G35: 8 | H35: 11265 | J35: 65701
A36: 경남 | B36: 2939 | C36: 185 | D36: 331825 | E36: 85 | F36: 139017 | G36: 20 | H36: 26102 | I36: 94 | J36: 166706 | P36: 79
C37: 85 | D37: 162447 | F37: 66293 | G37: 6 | H37: 13051 | J37: 83103
A38: 제주 | B38: 37 | C38: 14 | D38: 42350 | E38: 10 | F38: 34174 | G38: 3 | H38: 5776 | I38: 2 | J38: 2400
C39: 10 | D39: 18675 | F39: 14587 | G39: 2 | H39: 2888 | J39: 1200

Sheet ★전체
A1: 2021년도 급경사지 안전관리 대책 추진 대상 급경사지 점검결과(대덕구)
A3: =SUBTOTAL(3,A6:A15560) -> 54 | N3: =COUNTIF(E6:E368,"도로") -> 1
A4: ① 해빙기 안전관리대책 추진대상 급경사지 | R4: ④ 결과 공개 | U4: ⑤ 점검 결과 | X4: ⑥ 후속 조치 | Y4: ⑦ 담당 | AB4: 비고
A5: 시·도 | B5: 시.군.구 | C5: 읍·면·동 | D5: 지번 | E5: 용도 | F5: 구조 | G5: 유형 | H5: 지구명 | I5: 관리기관 | J5: 공공/ 민간 | K5: 등급 | O5: 점검자 (공무원,공사·공단) | P5: 점검 시작일 (YYYY-MM-DD) | Q5: 점검 종료일 (YYYY-MM-DD) | R5: 공개여부 | S5: 유형 | T5: 공개일 | U5: 조치 유형(대책) | V5: 조치 유형(소요기간) | W5: 주요 지적사항(내용) | X5: 진행상황 | Y5: 부서명 | Z5: 담당자 | AA5: 전화번호
A6: 서울 | B6: 강남구 | C6: 일원동 | D6: 736-1 | E6: 공원 | F6: 석축 | G6: 인공 | H6: 일원동 736-1 | I6: 기타(지방산림청) | J6: 공공 | K6: B
A7: 서울 | B7: 강남구 | C7: 수서동 | D7: 749 | E7: 공원 | F7: 옹벽 | G7: 인공 | H7: 수서동 749 | I7: 지자체(강남구) | J7: 공공 | K7: B
A8: 서울 | B8: 강남구 | C8: 도곡동 | D8: 179 | E8: 도로 | F8: 옹벽 | G8: 인공 | H8: 도곡근린공원 옹벽 | I8: 지자체(강남구) | J8: 공공 | K8: B
A9: 서울 | B9: 강남구 | C9: 삼성동 | D9: 79 | E9: 아파트 | F9: 옹벽 | G9: 인공 | H9: 홍실아파트 옹벽 | I9: 지자체(강남구) | J9: 민영 | K9: C
A10: 서울 | B10: 강남구 | C10: 청담동 | D10: 65 | E10: 아파트 | F10: 옹벽 | G10: 인공 | H10: 진흥아파트 옹벽 | I10: 지자체(강남구) | J10: 민영 | K10: B
A11: 서울 | B11: 강남구 | C11: 도곡동 | D11: 540 | E11: 아파트 | F11: 옹벽 | G11: 인공 | H11: 삼호아파트 옹벽 | I11: 지자체(강남구) | J11: 민영 | K11: B
A12: 서울 | B12: 강남구 | C12: 역삼동 | D12: 934-10 | E12: 아파트 | F12: 암반 | G12: 인공 | H12: 역삼우성아파트 옹벽 | I12: 지자체(강남구) | J12: 민영 | K12: C
A13: 서울 | B13: 강남구 | C13: 일원동 | D13: 731 | E13: 아파트 | F13: 옹벽 | G13: 인공 | H13: 한솔아파트 옹벽 | I13: 지자체(강남구) | J13: 민영 | K13: B
A14: 서울 | B14: 강남구 | C14: 일원동 | D14: 739 | E14: 아파트 | F14: 옹벽 | G14: 인공 | H14: 청솔빌리지 옹벽 | I14: 지자체(강남구) | J14: 민영 | K14: B
A15: 서울 | B15: 강남구 | C15: 삼성동 | D15: 78-4 | E15: 아파트 | F15: 암반 | G15: 인공 | H15: 청구타운 아파트 옹벽 | I15: 지자체(강남구) | J15: 민영 | K15: B
A16: 서울 | B16: 강남구 | C16: 도곡동 | D16: 869 | E16: 아파트 | F16: 옹벽 | G16: 인공 | H16: 삼익아파트 옹벽 | I16: 지자체(강남구) | J16: 민영 | K16: B
A17: 서울 | B17: 강남구 | C17: 자곡동 | D17: 619 | E17: 아파트 | F17: 옹벽 | G17: 인공 | H17: LH강남힐스테이트(5단지) | I17: 지자체(강남구) | J17: 민영 | K17: A
A18: 서울 | B18: 강남구 | C18: 자곡동 | D18: 646 | E18: 아파트 | F18: 옹벽 | G18: 인공 | H18: LH강남8단지 | I18: 지자체(강남구) | J18: 민영 | K18: B
A19: 서울 | B19: 강남구 | C19: 대치동 | D19: 212-12 | E19: 도로(지,군,비) | F19: 암반 | G19: 인공 | H19: 한티근린공원 | I19: 지자체(강남구) | J19: 공공 | K19: B
A20: 서울 | B20: 강남구 | C20: 도곡동 | D20: 31-1 | E20: 도로 | F20: 복합 | G20: 인공 | H20: 도곡근린공원 | I20: 지자체(강남구) | J20: 공공 | K20: B
A21: 서울 | B21: 강남구 | C21: 세곡동 | D21: 52-21 | E21: 도로(지,군,비) | F21: 옹벽 | G21: 인공 | H21: 헌릉로 도로사면 | I21: 지자체(강남구) | J21: 공공 | K21: B
A22: 서울 | B22: 강남구 | C22: 도곡동 | D22: 110 | E22: 도로 | F22: 옹벽 | G22: 인공 | H22: 도곡동(7) | I22: 지자체(강남구) | J22: 공공 | K22: C
A23: 서울 | B23: 강남구 | C23: 도곡동 | D23: 39-3 | E23: 도로 | F23: 석축 | G23: 인공 | H23: 도곡동(8) | I23: 지자체(강남구) | J23: 공공 | K23: C
A24: 서울 | B24: 강남구 | C24: 개포동 | D24: 136-5 | E24: 도로 | F24: 암반 | G24: 인공 | H24: 개포동(11) | I24: 지자체(강남구) | J24: 공공 | K24: B
A25: 서울 | B25: 강남구 | C25: 율현동 | D25: 28-1 | E25: 도로 | F25: 암반 | G25: 인공 | H25: 율현동(21) | I25: 지자체(강남구) | J25: 공공 | K25: C
A26: 서울 | B26: 강남구 | C26: 개포동 | D26: 142-2 | E26: 도로 | F26: 옹벽 | G26: 인공 | H26: 개포동(22) | I26: 지자체(강남구) | J26: 공공 | K26: C
A27: 서울 | B27: 강남구 | C27: 세곡동 | D27: 115-12 | E27: 도로 | F27: 암반 | G27: 인공 | H27: 세곡동(24) | I27: 지자체(강남구) | J27: 공공 | K27: B
A28: 서울 | B28: 강남구 | C28: 도곡동 | D28: 28-7 | E28: 도로 | F28: 암반 | G28: 자연 | H28: 도곡동(26) | I28: 지자체(강남구) | J28: 공공 | K28: C
A29: 서울 | B29: 강남구 | C29: 개포동 | D29: 146-1 | E29: 도로 | F29: 암반 | G29: 인공 | H29: 개포동(28) | I29: 지자체(강남구) | J29: 공공 | K29: C
A30: 서울 | B30: 강남구 | C30: 개포동 | D30: 146-2 | E30: 도로 | F30: 옹벽 | G30: 인공 | H30: 개포동(29) | I30: 지자체(강남구) | J30: 공공 | K30: B
A31: 서울 | B31: 강남구 | C31: 수서동 | D31: 748 | E31: 도로 | F31: 옹벽 | G31: 인공 | H31: 수서동(37) | I31: 지자체(강남구) | J31: 공공 | K31: C
A32: 서울 | B32: 강남구 | C32: 세곡동 | D32: 12219 | E32: 도로 | F32: 옹벽 | G32: 인공 | H32: 세곡동(39) | I32: 지자체(강남구) | J32: 공공 | K32: C
A33: 서울 | B33: 강남구 | C33: 도곡동 | D33: 26-4 | E33: 도로 | F33: 암반 | G33: 인공 | H33: 도곡동(42) | I33: 지자체(강남구) | J33: 공공 | K33: C
A34: 서울 | B34: 강남구 | C34: 도곡동 | D34: 110 | E34: 도로 | F34: 옹벽 | G34: 인공 | H34: 도곡동(50) | I34: 지자체(강남구) | J34: 공공 | K34: B
A35: 서울 | B35: 강남구 | C35: 수서동 | D35: 749 | E35: 도로 | F35: 옹벽 | G35: 인공 | H35: 수서동(51) | I35: 지자체(강남구) | J35: 공공 | K35: B
A36: 서울 | B36: 강남구 | C36: 수서동 | D36: 749 | E36: 도로 | F36: 옹벽 | G36: 인공 | H36: 수서동(52) | I36: 지자체(강남구) | J36: 공공 | K36: B
A37: 서울 | B37: 강남구 | C37: 도곡동 | D37: 6-13 | E37: 도로 | F37: 옹벽 | G37: 자연 | H37: 도곡동(55) | I37: 지자체(강남구) | J37: 공공 | K37: C
A38: 서울 | B38: 강남구 | C38: 세곡동 | D38: 52-53 | E38: 도로 | F38: 토사 | G38: 인공 | H38: 세곡동(57) | I38: 지자체(강남구) | J38: 공공 | K38: B
A39: 서울 | B39: 강남구 | C39: 수서동 | D39: 748 | E39: 도로 | F39: 옹벽 | G39: 인공 | H39: 수서동(58) | I39: 지자체(강남구) | J39: 공공 | K39: C
A40: 서울 | B40: 강남구 | C40: 수서동 | D40: 10-1 | E40: 도로 | F40: 암반 | G40: 인공 | H40: 수서동(60) | I40: 지자체(강남구) | J40: 공공 | K40: B
A41: 서울 | B41: 강남구 | C41: 도곡동 | D41: 874-1 | E41: 도로 | F41: 암반 | G41: 인공 | H41: 도곡동(62) | I41: 지자체(강남구) | J41: 공공 | K41: C
A42: 서울 | B42: 강남구 | C42: 도곡동 | D42: 31-1 | E42: 도로 | F42: 암반 | G42: 인공 | H42: 도곡동(76) | I42: 지자체(강남구) | J42: 공공 | K42: B
A43: 서울 | B43: 강남구 | C43: 수서동 | D43: 749 | E43: 도로 | F43: 옹벽 | G43: 인공 | H43: 수서동(79) | I43: 지자체(강남구) | J43: 공공 | K43: C
A44: 서울 | B44: 강남구 | C44: 세곡동 | D44: 40 | E44: 도로 | F44: 옹벽 | G44: 인공 | H44: 세곡동(9) | I44: 지자체(강남구) | J44: 공공 | K44: B
A45: 서울 | B45: 강남구 | C45: 개포동 | D45: 155 | E45: 도로 | F45: 옹벽 | G45: 인공 | H45: 개포동(10) | I45: 지자체(강남구) | J45: 공공 | K45: B
A46: 서울 | B46: 강남구 | C46: 일원동 | D46: 38-1 | E46: 도로 | F46: 암반 | G46: 인공 | H46: 일원동(15) | I46: 지자체(강남구) | J46: 공공 | K46: C
A47: 서울 | B47: 강남구 | C47: 일원동 | D47: 723-2 | E47: 도로 | F47: 옹벽 | G47: 인공 | H47: 일원동(16) | I47: 지자체(강남구) | J47: 공공 | K47: A
A48: 서울 | B48: 강남구 | C48: 개포동 | D48: 1271 | E48: 도로 | F48: 옹벽 | G48: 인공 | H48: 개포동(19) | I48: 지자체(강남구) | J48: 공공 | K48: B
A49: 서울 | B49: 강남구 | C49: 개포동 | D49: 1271 | E49: 도로 | F49: 옹벽 | G49: 인공 | H49: 개포동(20) | I49: 지자체(강남구) | J49: 공공 | K49: B
A50: 서울 | B50: 강남구 | C50: 일원동 | D50: 128-10 | E50: 도로 | F50: 암반 | G50: 인공 | H50: 일원동(23) | I50: 지자체(강남구) | J50: 공공 | K50: C
A51: 서울 | B51: 강남구 | C51: 자곡동 | D51: 389 | E51: 도로 | F51: 옹벽 | G51: 인공 | H51: 자곡동(27) | I51: 지자체(강남구) | J51: 공공 | K51: B
A52: 서울 | B52: 강남구 | C52: 수서동 | D52: 749 | E52: 도로 | F52: 옹벽 | G52: 인공 | H52: 수서동(30) | I52: 지자체(강남구) | J52: 공공 | K52: B
A53: 서울 | B53: 강남구 | C53: 논현동 | D53: 26 | E53: 도로 | F53: 옹벽 | G53: 인공 | H53: 논현동(26) | I53: 지자체(강남구) | J53: 공공 | K53: B
A54: 서울 | B54: 강남구 | C54: 수서동 | D54: 749 | E54: 도로 | F54: 옹벽 | G54: 인공 | H54: 수서동(32) | I54: 지자체(강남구) | J54: 공공 | K54: B
A55: 서울 | B55: 강남구 | C55: 일원동 | D55: 732-3 | E55: 도로 | F55: 석축 | G55: 인공 | H55: 일원동(35) | I55: 지자체(강남구) | J55: 공공 | K55: C
A56: 서울 | B56: 강남구 | C56: 자곡동 | D56: 46-43 | E56: 도로 | F56: 암반 | G56: 인공 | H56: 자곡동(36) | I56: 지자체(강남구) | J56: 공공 | K56: B
A57: 서울 | B57: 강남구 | C57: 자곡동 | D57: 39-3 | E57: 도로 | F57: 석축 | G57: 인공 | H57: 자곡동(38) | I57: 지자체(강남구) | J57: 공공 | K57: B
A58: 서울 | B58: 강남구 | C58: 일원동 | D58: 38-1 | E58: 도로 | F58: 암반 | G58: 인공 | H58: 일원동(44) | I58: 지자체(강남구) | J58: 공공 | K58: B
A59: 서울 | B59: 강남구 | C59: 개포동 | D59: 657 | E59: 도로 | F59: 석축 | G59: 인공 | H59: 개포동(45) | I59: 지자체(강남구) | J59: 공공 | K59: A
A60: 서울 | B60: 강남구 | C60: 개포동 | D60: 1271 | E60: 도로 | F60: 석축 | G60: 인공 | H60: 개포동(46) | I60: 지자체(강남구) | J60: 공공 | K60: B
A61: 서울 | B61: 강남구 | C61: 개포동 | D61: 1271 | E61: 도로 | F61: 석축 | G61: 인공 | H61: 개포동(47) | I61: 지자체(강남구) | J61: 공공 | K61: C
A62: 서울 | B62: 강남구 | C62: 개포동 | E62: 도로 | F62: 암반 | G62: 인공 | H62: 개포동(49) | I62: 지자체(강남구) | J62: 공공 | K62: B
A63: 서울 | B63: 강남구 | C63: 논현동 | D63: 26 | E63: 도로 | F63: 암반 | G63: 인공 | H63: 논현동(59) | I63: 지자체(강남구) | J63: 공공 | K63: B
A64: 서울 | B64: 강남구 | C64: 개포동 | E64: 도로 | F64: 암반 | G64: 인공 | H64: 개포동(63) | I64: 지자체(강남구) | J64: 공공 | K64: B
A65: 서울 | B65: 강남구 | C65: 개포동 | D65: 657 | E65: 도로 | F65: 암반 | G65: 인공 | H65: 개포동(64) | I65: 지자체(강남구) | J65: 공공 | K65: B
A66: 서울 | B66: 강남구 | C66: 개포동 | D66: 1274 | E66: 도로 | F66: 암반 | G66: 인공 | H66: 개포동(65) | I66: 지자체(강남구) | J66: 공공 | K66: B
A67: 서울 | B67: 강남구 | C67: 청담동 | D67: 65 | E67: 도로 | F67: 암반 | G67: 인공 | H67: 청담동(66) | I67: 지자체(강남구) | J67: 공공 | K67: B
A68: 서울 | B68: 강남구 | C68: 개포동 | D68: 1271 | E68: 도로 | F68: 암반 | G68: 인공 | H68: 개포동(67) | I68: 지자체(강남구) | J68: 공공 | K68: B
A69: 서울 | B69: 강남구 | C69: 청담동 | D69: 59-28 | E69: 도로 | F69: 석축 | G69: 인공 | H69: 청담동(68) | I69: 지자체(강남구) | J69: 공공 | K69: A
A70: 서울 | B70: 강남구 | C70: 세곡동 | D70: 43 | E70: 도로 | F70: 암반 | G70: 인공 | H70: 세곡동(69) | I70: 지자체(강남구) | J70: 공공 | K70: B
A71: 서울 | B71: 강남구 | C71: 율현동 | D71: 196-10 | E71: 도로 | F71: 암반 | G71: 인공 | H71: 윤현동(71) | I71: 지자체(강남구) | J71: 공공 | K71: C
A72: 서울 | B72: 강남구 | C72: 율현동 | D72: 3-1 | E72: 도로 | F72: 암반 | G72: 인공 | H72: 율현동(72) | I72: 지자체(강남구) | J72: 공공 | K72: B
A73: 서울 | B73: 강남구 | C73: 율현동 | D73: 3-3 | E73: 도로 | F73: 암반 | G73: 인공 | H73: 윤현동(74) | I73: 지자체(강남구) | J73: 공공 | K73: B
A74: 서울 | B74: 강남구 | C74: 논현동 | D74: 26 | E74: 도로 | F74: 암반 | G74: 인공 | H74: 논현동(75) | I74: 지자체(강남구) | J74: 공공 | K74: B
A75: 서울 | B75: 강남구 | C75: 개포동 | D75: 175-3 | E75: 도로 | F75: 암반 | G75: 인공 | H75: 개포동(77) | I75: 지자체(강남구) | J75: 공공 | K75: B
A76: 서울 | B76: 강남구 | C76: 도곡동 | D76: 145-33 | E76: 도로(지,군,비) | F76: 암반 | G76: 인공 | H76: 언주로 매봉터널 진입 전 우측사면 | I76: 지자체(서울특별시) | J76: 공공 | K76: A
A77: 서울 | B77: 강남구 | C77: 일원동 | D77: 173-8 | E77: 주택 | F77: 옹벽 | G77: 자연 | H77: 양재대로(수서방향) 삼성의료원 사거리 전 우측 | I77: 지자체(서울특별시) | J77: 공공 | K77: A
A78: 서울 | B78: 강남구 | C78: 일원동 | D78: 50 | E78: 주택 | F78: 옹벽 | G78: 인공 | H78: 양재대로(수서방향) 삼성의료원 앞 우측 | I78: 지자체(서울특별시) | J78: 공공 | K78: B
A79: 서울 | B79: 강남구 | C79: 일원동 | D79: 697-1 | E79: 도로(지,군,비) | F79: 암반 | G79: 인공 | H79: 양재대로(수서방향) 일원지하차도 지난 우측 | I79: 지자체(서울특별시) | J79: 공공 | K79: C
A80: 서울 | B80: 강남구 | C80: 개포동 | D80: 192-1 | E80: 도로(지,군,비) | F80: 암반 | G80: 인공 | H80: 양재대로(수서방향) 일원지하차도 전 우측 | I80: 지자체(서울특별시) | J80: 공공 | K80: C
A81: 서울 | B81: 강남구 | C81: 개포동 | D81: 63-14 | E81: 도로(지,군,비) | F81: 암반 | G81: 자연 | H81: 양재대로(수서방향) 개포3,4단지 삼거리 지난 우측 | I81: 지자체(서울특별시) | J81: 공공 | K81: B
A82: 서울 | B82: 강남구 | C82: 개포동 | D82: 72-3 | E82: 도로(지,군,비) | F82: 석축 | G82: 인공 | H82: 양재대로(수서방향) 개포 3,4단지 삼거리 전 우측 | I82: 지자체(서울특별시) | J82: 공공 | K82: A
A83: 서울 | B83: 강남구 | C83: 개포동 | D83: 647-3 | E83: 도로(지,군,비) | F83: 석축 | G83: 인공 | H83: 양재대로(수서방향) 구룡터널 전 우측 | I83: 지자체(서울특별시) | J83: 공공 | K83: B
A84: 서울 | B84: 강남구 | C84: 개포동 | D84: 1277-1 | E84: 도로(지,군,비) | F84: 암반 | G84: 인공 | H84: 양재대로(수서방향) 능인선원 지난우측 | I84: 지자체(서울특별시) | J84: 공공 | K84: C
A85: 서울 | B85: 강남구 | C85: 개포동 | D85: 1277-1 | E85: 도로(지,군,비) | F85: 암반 | G85: 인공 | H85: 양재대로(수서방향) 능인선원 전 우측 | I85: 지자체(서울특별시) | J85: 공공 | K85: C
A86: 서울 | B86: 강남구 | C86: 압구정동 | D86: 397 | E86: 도로(지,군,비) | F86: 옹벽 | G86: 인공 | H86: 28(성수대교전) | I86: 지자체(서울특별시) | J86: 공공 | K86: C
A87: 서울 | B87: 강동구 | C87: 천호동 | D87: 219-1 | E87: 주택 | F87: 암반 | G87: 인공 | H87: 보민연립 담장옹벽 | I87: 지자체(강동구) | J87: 민영 | K87: B
A88: 서울 | B88: 강동구 | C88: 명일동 | D88: 54 | E88: 아파트 | F88: 옹벽 | G88: 인공 | H88: 명일동 54 옹벽 | I88: 지자체(강동구) | J88: 민영 | K88: C
A89: 서울 | B89: 강동구 | C89: 명일동 | D89: 332-1 | E89: 아파트 | F89: 암반 | G89: 인공 | H89: 명일동 332-1 옹벽 | I89: 지자체(강동구) | J89: 민영 | K89: C
A90: 서울 | B90: 강동구 | C90: 둔촌동 | D90: 574-2 | E90: 도로(지,군,비) | F90: 옹벽 | G90: 인공 | H90: 둔촌동 574-2 | I90: 지자체(강동구) | J90: 공공 | K90: C
A91: 서울 | B91: 강동구 | C91: 둔촌동 | D91: 106 | E91: 도로(지,군,비) | F91: 암반 | G91: 인공 | H91: 둔촌동 산106 외 1 | I91: 지자체(강동구) | J91: 공공 | K91: B
A92: 서울 | B92: 강동구 | C92: 둔촌동 | D92: 18-2 | E92: 도로(지,군,비) | F92: 옹벽 | G92: 인공 | H92: 둔촌동 18-2 | I92: 지자체(강동구) | J92: 공공 | K92: B
A93: 서울 | B93: 강동구 | C93: 둔촌동 | D93: 75 | E93: 도로(지,군,비) | F93: 옹벽 | G93: 인공 | H93: 둔촌동 산75 | I93: 지자체(강동구) | J93: 공공 | K93: C
A94: 서울 | B94: 강동구 | C94: 명일동 | D94: 57-3 | E94: 도로(지,군,비) | F94: 암반 | G94: 인공 | H94: 명일동 산57-3 | I94: 지자체(강동구) | J94: 공공 | K94: B
A95: 서울 | B95: 강동구 | C95: 둔촌동 | D95: 227-7 | E95: 도로(지,군,비) | F95: 암반 | G95: 자연 | H95: 둔촌동 227-7 | I95: 지자체(강동구) | J95: 공공 | K95: C
A96: 서울 | B96: 강동구 | C96: 암사동 | D96: 418-7 | E96: 도로(지,군,비) | F96: 암반 | G96: 자연 | H96: 도로옹벽(암사동418-7) | I96: 지자체(강동구) | J96: 공공 | K96: B
A97: 서울 | B97: 강동구 | C97: 명일동 | D97: 67-3 | E97: 도로(지,군,비) | F97: 암반 | G97: 인공 | H97: 도로옹벽(명일동 산67-3) | I97: 지자체(강동구) | J97: 공공 | K97: C
A98: 서울 | B98: 강동구 | C98: 성내동 | D98: 160-45 | E98: 도로(지,군,비) | F98: 석축 | G98: 인공 | H98: 성내동 160-45 | I98: 지자체(강동구) | J98: 공공 | K98: B
A99: 서울 | B99: 강동구 | C99: 암사동 | D99: 4-22 | E99: 도로(지,군,비) | F99: 옹벽 | G99: 인공 | H99: 올림픽대로(강일방향) 암사고개 전 우측 | I99: 지자체(서울특별시) | J99: 공공 | K99: C
A100: 서울 | B100: 강동구 | C100: 암사동 | D100: 7-5 | E100: 도로(지,군,비) | F100: 암반 | G100: 인공 | H100: 올림픽대로(강일방향) 암사고개 우측 | I100: 지자체(서울특별시) | J100: 공공 | K100: C
A101: 서울 | B101: 강동구 | C101: 암사동 | D101: 6-2 | E101: 도로(지,군,비) | F101: 옹벽 | G101: 인공 | H101: 올림픽대로(공항방향) 암사고개 우측 | I101: 지자체(서울특별시) | J101: 공공 | K101: B
A102: 서울 | B102: 강동구 | C102: 암사동 | D102: 1-1 | E102: 도로(지,군,비) | F102: 암반 | G102: 인공 | H102: 13(암사고개) | I102: 지자체(서울특별시) | J102: 공공 | K102: C
A103: 서울 | B103: 강동구 | C103: 고덕동 | D103: 217 | E103: 도로(지,군,비) | F103: 옹벽 | G103: 인공 | H103: 15(고덕천교) | I103: 지자체(서울특별시) | J103: 공공 | K103: C
A104: 서울 | B104: 강동구 | C104: 암사동 | D104: 500-27 | E104: 도로(지,군,비) | F104: 옹벽 | G104: 인공 | H104: 18(암사지하차도) | I104: 지자체(서울특별시) | J104: 공공 | K104: B
A105: 서울 | B105: 강북구 | C105: 수유동 | D105: 산127-1 | E105: 공원 | F105: 복합 | G105: 자연 | H105: 수유지구 | I105: 북한산국립공원사무소 | J105: 공공 | K105: C
A106: 서울 | B106: 강북구 | C106: 우이동 | D106: 산68-1 | E106: 공원 | F106: 복합 | G106: 자연 | H106: 우이지구 | I106: 북한산국립공원사무소 | J106: 공공 | K106: B
A107: 서울 | B107: 강북구 | C107: 우이동 | D107: 산68-1 | E107: 공원 | F107: 복합 | G107: 자연 | H107: 우이지구 | I107: 북한산국립공원사무소 | J107: 공공 | K107: C
A108: 서울 | B108: 강북구 | C108: 우이동 | D108: 산68-1 | E108: 공원 | F108: 복합 | G108: 자연 | H108: 우이지구 | I108: 북한산국립공원사무소 | J108: 공공 | K108: C
A109: 서울 | B109: 강북구 | C109: 우이동 | D109: 산68-1 | E109: 공원 | F109: 암반 | G109: 자연 | H109: 우이지구 | I109: 북한산국립공원사무소 | J109: 공공 | K109: C
A110: 서울 | B110: 강북구 | C110: 수유동 | D110: 516-15 | E110: 주택 | F110: 옹벽 | G110: 인공 | H110: 수유동 516-15, 37 | I110: 지자체(강북구) | J110: 민영 | K110: A
A111: 서울 | B111: 강북구 | C111: 미아동 | D111: 258-601 | E111: 주택 | F111: 토사 | G111: 인공 | H111: 대성그린빌라 옹벽 | I111: 지자체(강북구) | J111: 민영 | K111: B
A112: 서울 | B112: 강북구 | C112: 미아동 | D112: 258-732 | E112: 아파트 | F112: 옹벽 | G112: 자연 | H112: 한일아파트 옹벽 | I112: 지자체(강북구) | J112: 민영 | K112: C
A113: 서울 | B113: 강북구 | C113: 수유동 | D113: 486-2 | E113: 아파트 | F113: 옹벽 | G113: 인공 | H113: 삼흥연립 옹벽 | I113: 지자체(강북구) | J113: 민영 | K113: B
A114: 서울 | B114: 강북구 | C114: 수유동 | D114: 530-1 | E114: 주택 | F114: 석축 | G114: 인공 | H114: 현대수유빌라 옹벽 | I114: 지자체(강북구) | J114: 민영 | K114: B
A115: 서울 | B115: 강북구 | C115: 미아동 | D115: 3-290 | E115: 아파트 | F115: 석축 | G115: 인공 | H115: 옹벽 | I115: 지자체(강북구) | J115: 민영 | K115: D
A116: 서울 | B116: 강북구 | C116: 미아동 | D116: 1356 | E116: 아파트 | F116: 옹벽 | G116: 인공 | H116: 경남아너스빌아파트 옹벽 | I116: 지자체(강북구) | J116: 민영 | K116: B
A117: 서울 | B117: 강북구 | C117: 미아동 | D117: 190-2 | E117: 아파트 | F117: 옹벽 | G117: 인공 | H117: 미아현대아파트 옹벽 | I117: 지자체(강북구) | J117: 민영 | K117: B
A118: 서울 | B118: 강북구 | C118: 미아동 | D118: 811 | E118: 아파트 | F118: 옹벽 | G118: 인공 | H118: 두산위브트레지움아파트 옹벽 | I118: 지자체(강북구) | J118: 민영 | K118: C
A119: 서울 | B119: 강북구 | C119: 미아동 | D119: 35-1 | E119: 아파트 | F119: 석축 | G119: 인공 | H119: 절개지 | I119: 지자체(강북구) | J119: 공공 | K119: C
A120: 서울 | B120: 강북구 | C120: 수유동 | D120: 127-1 | E120: 주택 | F120: 석축 | G120: 인공 | H120: 절개지 | I120: 지자체(강북구) | J120: 공공 | K120: B
A121: 서울 | B121: 강북구 | C121: 미아동 | D121: 1353 | E121: 아파트 | F121: 옹벽 | G121: 인공 | H121: 절개지 | I121: 지자체(강북구) | J121: 공공 | K121: C
A122: 서울 | B122: 강북구 | C122: 수유동 | D122: 486-739 | E122: 도로(지,군,비) | F122: 옹벽 | G122: 자연 | H122: 인수봉로 도로옹벽 | I122: 지자체(서울특별시) | J122: 공공 | K122: B
A123: 서울 | B123: 강북구 | C123: 수유동 | D123: 486-739 | E123: 도로(지,군,비) | F123: 옹벽 | G123: 자연 | H123: 인수봉로 도로옹벽(시내방향) | I123: 지자체(서울특별시) | J123: 공공 | K123: C
A124: 서울 | B124: 강서구 | C124: 등촌동 | D124: 568-34 | E124: 주택 | F124: 암반 | G124: 인공 | H124: 등촌2동 568-34 | I124: 지자체(강서구) | J124: 민영 | K124: B
A125: 서울 | B125: 강서구 | C125: 화곡동 | D125: 1030-27 | E125: 주택 | F125: 옹벽 | G125: 인공 | H125: 화곡동 1030-27 | I125: 지자체(강서구) | J125: 민영 | K125: B
A126: 서울 | B126: 강서구 | C126: 등촌동 | D126: 365-171 | E126: 주택 | F126: 옹벽 | G126: 인공 | H126: 등촌2동 365-171 | I126: 지자체(강서구) | J126: 민영 | K126: C
A127: 서울 | B127: 강서구 | C127: 화곡동 | D127: 42-75 | E127: 주택 | F127: 토사 | G127: 자연 | H127: 화곡6동 42-75 | I127: 지자체(강서구) | J127: 민영 | K127: B
A128: 서울 | B128: 강서구 | C128: 화곡동 | D128: 73-105 | E128: 주택 | F128: 암반 | G128: 인공 | H128: 대근연립 옹벽 | I128: 지자체(강서구) | J128: 민영 | K128: B
A129: 서울 | B129: 강서구 | C129: 등촌동 | D129: 365-365 | E129: 아파트 | F129: 옹벽 | G129: 인공 | H129: 두보아파트 옹벽 | I129: 지자체(강서구) | J129: 민영 | K129: C
A130: 서울 | B130: 강서구 | C130: 화곡동 | D130: 50-120 | E130: 주택 | F130: 암반 | G130: 인공 | H130: 거성빌라 옹벽 | I130: 지자체(강서구) | J130: 민영 | K130: A
A131: 서울 | B131: 강서구 | C131: 방화동 | D131: 816 | E131: 아파트 | F131: 옹벽 | G131: 인공 | H131: 방화6단지급경사지 | I131: 지자체(강서구) | J131: 민영 | K131: C
A132: 서울 | B132: 강서구 | C132: 방화동 | D132: 807 | E132: 아파트 | F132: 옹벽 | G132: 인공 | H132: 방화9단지아파트 | I132: 지자체(강서구) | J132: 민영 | K132: C
A133: 서울 | B133: 강서구 | C133: 등촌동 | D133: 515-44 | E133: 주택 | F133: 복합 | G133: 인공 | H133: 두보하이츠빌라 옹벽 | I133: 지자체(강서구) | J133: 민영 | K133: C
A134: 서울 | B134: 강서구 | C134: 화곡동 | D134: 8-1 | E134: 주택 | F134: 석축 | G134: 인공 | H134: 용천사절개지 | I134: 지자체(강서구) | J134: 공공 | K134: C
A135: 서울 | B135: 강서구 | C135: 가양동 | D135: 5 | E135: 도로(지,군,비) | F135: 옹벽 | G135: 인공 | H135: 궁산절개지 | I135: 지자체(강서구) | J135: 공공 | K135: B
A136: 서울 | B136: 강서구 | C136: 화곡동 | D136: 41-9 | E136: 주택 | F136: 암반 | G136: 자연 | H136: 화곡본동 절개지 | I136: 지자체(강서구) | J136: 공공 | K136: B
A137: 서울 | B137: 강서구 | C137: 염창동 | D137: 233-7 | E137: 공원 | F137: 암반 | G137: 자연 | H137: 염창산 절개지 | I137: 지자체(강서구) | J137: 공공 | K137: C
A138: 서울 | B138: 강서구 | C138: 등촌동 | D138: 26-11 | E138: 주택 | F138: 암반 | G138: 인공 | H138: 등촌2동 절개지 | I138: 지자체(강서구) | J138: 공공 | K138: C
A139: 서울 | B139: 강서구 | C139: 개화동 | D139: 16-1 | E139: 도로(지,군,비) | F139: 석축 | G139: 인공 | H139: 개화산 절개지(개화동 산16-1) | I139: 지자체(강서구) | J139: 공공 | K139: B
A140: 서울 | B140: 강서구 | C140: 개화동 | D140: 17 | E140: 도로(지,군,비) | F140: 옹벽 | G140: 인공 | H140: 개화산 절개지(개화동 산17) | I140: 지자체(강서구) | J140: 공공 | K140: C
A141: 서울 | B141: 강서구 | C141: 화곡동 | D141: 1093-68 | E141: 도로(지,군,비) | F141: 석축 | G141: 인공 | H141: 화곡동 1093-68 급경사지 | I141: 지자체(강서구) | J141: 공공 | K141: C
A142: 서울 | B142: 강서구 | C142: 내발산동 | D142: 761 | E142: 도로(지,군,비) | F142: 옹벽 | G142: 인공 | H142: 내발산동 761 급경사지 | I142: 지자체(강서구) | J142: 공공 | K142: A
A143: 서울 | B143: 강서구 | C143: 화곡동 | D143: 1125-13 | E143: 도로(지,군,비) | F143: 암반 | G143: 인공 | H143: 화곡동 1125-13 급경사지 | I143: 지자체(강서구) | J143: 공공 | K143: C
A144: 서울 | B144: 강서구 | C144: 염창동 | D144: 20-1 | E144: 도로(지,군,비) | F144: 석축 | G144: 인공 | H144: 올림픽대로(강일방향) 염창IC 진출램프 우측 | I144: 지자체(서울특별시) | J144: 공공 | K144: B
A145: 서울 | B145: 강서구 | C145: 가양동 | D145: 5 | E145: 도로(지,군,비) | F145: 옹벽 | G145: 인공 | H145: 올림픽대로(강일방향) 궁산진출램프 전 우측 | I145: 지자체(서울특별시) | J145: 공공 | K145: C
A146: 서울 | B146: 관악구 | C146: 봉천동 | D146: 722-19 | E146: 주택 | F146: 옹벽 | G146: 인공 | H146: 보라매동 722-19 | I146: 지자체(관악구) | J146: 민영 | K146: B
A147: 서울 | B147: 관악구 | C147: 봉천동 | D147: 1718-4 | E147: 주택 | F147: 암반 | G147: 인공 | H147: 성현동 1718-4 | I147: 지자체(관악구) | J147: 민영 | K147: B
A148: 서울 | B148: 관악구 | C148: 봉천동 | D148: 196-19 | E148: 주택 | F148: 옹벽 | G148: 인공 | H148: 인헌동 196-19~22 | I148: 지자체(관악구) | J148: 민영 | K148: B
A149: 서울 | B149: 관악구 | C149: 봉천동 | D149: 196-23 | E149: 주택 | F149: 옹벽 | G149: 인공 | H149: 인헌동 196-23~43 | I149: 지자체(관악구) | J149: 민영 | K149: B
A150: 서울 | B150: 관악구 | C150: 봉천동 | D150: 196-265 | E150: 주택 | F150: 옹벽 | G150: 인공 | H150: 인헌동 196-265~267 | I150: 지자체(관악구) | J150: 민영 | K150: B
A151: 서울 | B151: 관악구 | C151: 신림동 | D151: 598-46 | E151: 주택 | F151: 암반 | G151: 인공 | H151: 신림12동 598-46 | I151: 지자체(관악구) | J151: 민영 | K151: C
A152: 서울 | B152: 관악구 | C152: 신림동 | D152: 415-62 | E152: 주택 | F152: 토사 | G152: 인공 | H152: 신림1동 415-62 | I152: 지자체(관악구) | J152: 민영 | K152: B
A153: 서울 | B153: 관악구 | C153: 신림동 | D153: 419-22 | E153: 주택 | F153: 옹벽 | G153: 인공 | H153: 신림1동 419-22 | I153: 지자체(관악구) | J153: 민영 | K153: B
A154: 서울 | B154: 관악구 | C154: 신림동 | D154: 646-319 | E154: 주택 | F154: 암반 | G154: 인공 | H154: 신림3동 646-319 | I154: 지자체(관악구) | J154: 민영 | K154: B
A155: 서울 | B155: 관악구 | C155: 신림동 | D155: 251-170 | E155: 주택 | F155: 암반 | G155: 인공 | H155: 신림동 251-170 | I155: 지자체(관악구) | J155: 민영 | K155: C
A156: 서울 | B156: 관악구 | C156: 신림동 | D156: 610-401 | E156: 주택 | F156: 암반 | G156: 인공 | H156: 신림3동 610-401 | I156: 지자체(관악구) | J156: 민영 | K156: B
A157: 서울 | B157: 관악구 | C157: 신림동 | D157: 94-169 | E157: 주택 | F157: 암반 | G157: 인공 | H157: 신림동 94-169 | I157: 지자체(관악구) | J157: 민영 | K157: B
A158: 서울 | B158: 관악구 | C158: 봉천동 | D158: 1712-1 | E158: 아파트 | F158: 석축 | G158: 인공 | H158: 관악-SH63 | I158: 지자체(관악구) | J158: 민영 | K158: C
A159: 서울 | B159: 관악구 | C159: 봉천동 | D159: 1712-1 | E159: 아파트 | F159: 석축 | G159: 인공 | H159: 관악-SH64 | I159: 지자체(관악구) | J159: 민영 | K159: C
A160: 서울 | B160: 관악구 | C160: 신림동 | D160: 1703-1 | E160: 아파트 | F160: 석축 | G160: 인공 | H160: 신림건영3차아파트 | I160: 지자체(관악구) | J160: 민영 | K160: C
A161: 서울 | B161: 관악구 | C161: 신림동 | D161: 746-43 | E161: 아파트 | F161: 복합 | G161: 인공 | H161: 신림건영1차아파트 | I161: 지자체(관악구) | J161: 민영 | K161: B
A162: 서울 | B162: 관악구 | C162: 신림동 | D162: 1693 | E162: 아파트 | F162: 옹벽 | G162: 인공 | H162: 국제산장아파트 | I162: 지자체(관악구) | J162: 민영 | K162: B
A163: 서울 | B163: 관악구 | C163: 신림동 | D163: 1698 | E163: 아파트 | F163: 옹벽 | G163: 인공 | H163: 신림태흥아파트 | I163: 지자체(관악구) | J163: 민영 | K163: B
A164: 서울 | B164: 관악구 | C164: 신림동 | D164: 1694 | E164: 아파트 | F164: 옹벽 | G164: 인공 | H164: 신림현대아파트 | I164: 지자체(관악구) | J164: 민영 | K164: C
A165: 서울 | B165: 관악구 | C165: 봉천동 | D165: 1703 | E165: 아파트 | F165: 옹벽 | G165: 인공 | H165: 성현동아아파트 | I165: 지자체(관악구) | J165: 민영 | K165: B
A166: 서울 | B166: 관악구 | C166: 신림동 | D166: 1705 | E166: 아파트 | F166: 옹벽 | G166: 인공 | H166: 금호타운1차아파트 | I166: 지자체(관악구) | J166: 민영 | K166: A
A167: 서울 | B167: 관악구 | C167: 신림동 | D167: 28-9 | E167: 아파트 | F167: 암반 | G167: 자연 | H167: 신동아아파트 | I167: 지자체(관악구) | J167: 민영 | K167: C
A168: 서울 | B168: 관악구 | C168: 신림동 | D168: 1563-82 | E168: 아파트 | F168: 암반 | G168: 자연 | H168: 한양아파트 | I168: 지자체(관악구) | J168: 민영 | K168: A
A169: 서울 | B169: 관악구 | C169: 신림동 | D169: 10-622 | E169: 아파트 | F169: 옹벽 | G169: 인공 | H169: 성우아파트 | I169: 지자체(관악구) | J169: 민영 | K169: B
A170: 서울 | B170: 관악구 | C170: 신림동 | D170: 1720 | E170: 아파트 | F170: 옹벽 | G170: 인공 | H170: 에셀비전21아파트 | I170: 지자체(관악구) | J170: 민영 | K170: B
A171: 서울 | B171: 관악구 | C171: 봉천동 | D171: 1708-1 | E171: 아파트 | F171: 석축 | G171: 인공 | H171: 두산아파트 | I171: 지자체(관악구) | J171: 민영 | K171: C
A172: 서울 | B172: 관악구 | C172: 신림동 | D172: 32-1 | E172: 공원 | F172: 석축 | G172: 인공 | H172: 대학동 산32-1 관악산 입구 | I172: 지자체(관악구) | J172: 공공 | K172: B
A173: 서울 | B173: 관악구 | C173: 신림동 | D173: 1707-1 | E173: 도로(지,군,비) | F173: 석축 | G173: 인공 | H173: 미성동 1707-1 신림근린공원 | I173: 지자체(관악구) | J173: 공공 | K173: C
A174: 서울 | B174: 관악구 | C174: 남현동 | D174: 104-2 | E174: 공원 | F174: 옹벽 | G174: 인공 | H174: 남현동 산104-2 관음사 | I174: 지자체(관악구) | J174: 공공 | K174: B
A175: 서울 | B175: 관악구 | C175: 봉천동 | D175: 66-1 | E175: 주택 | F175: 석축 | G175: 인공 | H175: 행운동 산66-1 주택가 | I175: 지자체(관악구) | J175: 공공 | K175: B
A176: 서울 | B176: 관악구 | C176: 봉천동 | D176: 174-172 | E176: 주택 | F176: 옹벽 | G176: 인공 | H176: 청룡동 산174-172 관악그린빌라 | I176: 지자체(관악구) | J176: 공공 | K176: B
A177: 서울 | B177: 관악구 | C177: 신림동 | D177: 75-7 | E177: 공원 | F177: 암반 | G177: 자연 | H177: 삼성동 산75-7 궁도장 | I177: 지자체(관악구) | J177: 공공 | K177: C
A178: 서울 | B178: 관악구 | C178: 신림동 | D178: 198 | E178: 공원 | F178: 옹벽 | G178: 인공 | H178: 대학동 198 성주암 | I178: 지자체(관악구) | J178: 공공 | K178: C
A179: 서울 | B179: 관악구 | C179: 신림동 | D179: 117-10 | E179: 도로(지,군,비) | F179: 암반 | G179: 인공 | H179: 초원아파트 급경사지 | I179: 지자체(관악구) | J179: 공공 | K179: A
A180: 서울 | B180: 관악구 | C180: 봉천동 | D180: 149-8 | E180: 도로(지,군,비) | F180: 옹벽 | G180: 자연 | H180: 청룡동 산149-8 | I180: 지자체(관악구) | J180: 공공 | K180: B
A181: 서울 | B181: 관악구 | C181: 봉천동 | D181: 101-90 | E181: 도로(지,군,비) | F181: 암반 | G181: 자연 | H181: 성현동 산 101-90 | I181: 지자체(관악구) | J181: 공공 | K181: B
A182: 서울 | B182: 관악구 | C182: 신림동 | D182: 78-1 | E182: 도로(지,군,비) | F182: 석축 | G182: 인공 | H182: 호압사길 급경사지 | I182: 지자체(관악구) | J182: 공공 | K182: B
A183: 서울 | B183: 관악구 | C183: 신림동 | D183: 110-17 | E183: 도로(지,군,비) | F183: 암반 | G183: 인공 | H183: 난곡로 급경사지 | I183: 지자체(관악구) | J183: 공공 | K183: B
A184: 서울 | B184: 관악구 | C184: 신림동 | D184: 1713 | E184: 아파트 | F184: 옹벽 | G184: 인공 | H184: 신림2단지 주공아파트 | I184: 지자체(관악구) | J184: 민영 | K184: C
A185: 서울 | B185: 관악구 | C185: 신림동 | D185: 1735-2 | E185: 아파트 | F185: 옹벽 | G185: 인공 | H185: 신림3[관악산휴먼시아3]단지 | I185: 지자체(관악구) | J185: 민영 | K185: B
A186: 서울 | B186: 관악구 | C186: 신림동 | D186: 1735-2 | E186: 아파트 | F186: 옹벽 | G186: 인공 | H186: 서울신림3 | I186: 한국토지주택공사 | J186: 공공 | K186: B
A187: 서울 | B187: 광진구 | C187: 군자동 | D187: 125-77 | E187: 주택 | F187: 토사 | G187: 자연 | H187: 군자동125-77 78석축 | I187: 지자체(광진구) | J187: 민영 | K187: B
A188: 서울 | B188: 광진구 | C188: 중곡동 | D188: 176-78 | E188: 도로(지,군,비) | F188: 토사 | G188: 자연 | H188: 중곡동176-78 석축 | I188: 지자체(광진구) | J188: 민영 | K188: C
A189: 서울 | B189: 광진구 | C189: 광장동 | D189: 145-8 | E189: 주택 | F189: 토사 | G189: 자연 | H189: 워커힐(아) 31동 뒤 | I189: 지자체(광진구) | J189: 민영 | K189: C
A190: 서울 | B190: 광진구 | C190: 광장동 | D190: 145-8 | E190: 주택 | F190: 토사 | G190: 자연 | H190: 워커힐(아) 11동 뒤 | I190: 지자체(광진구) | J190: 민영 | K190: B
A191: 서울 | B191: 광진구 | C191: 구의동 | D191: 34-16 | E191: 공원 | F191: 석축 | G191: 인공 | H191: 구의동 34-16 절개지 | I191: 지자체(광진구) | J191: 공공 | K191: C
A192: 서울 | B192: 광진구 | C192: 중곡동 | D192: 176-1 | E192: 주택(학교) | F192: 옹벽 | G192: 인공 | H192: 중곡동 176-1 석축 | I192: 지자체(광진구) | J192: 공공 | K192: B
A193: 서울 | B193: 광진구 | C193: 중곡동 | D193: 143-146 | E193: 공원 | F193: 옹벽 | G193: 인공 | H193: 중곡동143-146 절개지 | I193: 지자체(광진구) | J193: 공공 | K193: C
A194: 서울 | B194: 광진구 | C194: 중곡동 | D194: 176-112 | E194: 공원 | F194: 암반 | G194: 인공 | H194: 중곡동176-112 절개지 | I194: 지자체(광진구) | J194: 공공 | K194: B
A195: 서울 | B195: 광진구 | C195: 광장동 | D195: 36-6 | E195: 도로(지,군,비) | F195: 토사 | G195: 인공 | H195: 광장동 36-6 | I195: 지자체(광진구) | J195: 공공 | K195: B
A196: 서울 | B196: 광진구 | C196: 광장동 | D196: 144-1 | E196: 도로(지,군,비) | F196: 옹벽 | G196: 인공 | H196: 광장동 144-1 | I196: 지자체(광진구) | J196: 공공 | K196: A
A197: 서울 | B197: 광진구 | C197: 광장동 | D197: 577-2 | E197: 도로(지,군,비) | F197: 옹벽 | G197: 인공 | H197: 광장동 577-2 | I197: 지자체(광진구) | J197: 공공 | K197: B
A198: 서울 | B198: 광진구 | C198: 광장동 | D198: 5-116 | E198: 도로(지,군,비) | F198: 암반 | G198: 인공 | H198: 광장동 5-116(우측) | I198: 지자체(광진구) | J198: 공공 | K198: C
A199: 서울 | B199: 광진구 | C199: 광장동 | D199: 5-116 | E199: 도로(지,군,비) | F199: 암반 | G199: 인공 | H199: 광장동 5-116(좌측) | I199: 지자체(광진구) | J199: 공공 | K199: C
A200: 서울 | B200: 구로구 | C200: 천왕동 | D200: 70-1 | E200: 공단(철도) | F200: 석축 | G200: 인공 | H200: 천왕1구간 | I200: 서울교통공사 | J200: 공공 | K200: C
A201: 서울 | B201: 구로구 | C201: 천왕동 | D201: 70-1 | E201: 공단(철도) | F201: 석축 | G201: 인공 | H201: 천왕2구간 | I201: 서울교통공사 | J201: 공공 | K201: B
... 4299 more rows

Sheet Sheet1
